{"text_format":"1","workbook":"xlsx","n_sheets":3,"sheets":["Instructions","Data Entry Instructions","Score Template"],"not_rendered":{"charts":6,"images":0,"macros":1,"external_links":0,"defined_names":3,"comments":1,"pivot_tables":0},"unopened":[],"bounds":{"document_bytes":16777216,"sheet_cells":100000,"rows_first":2000,"rows_last":500,"rows_between":2000,"halvings":0,"cell_chars":16384,"cell_head_chars":4096},"cells_cut":0,"cells_raw":0,"read":"whole","date_system":"1900"}

{"sheet":"Instructions","index":0,"n_rows":52,"n_cols":1,"rows_kept":52,"cut":false,"hidden":true,"merged":[]}
["Data Entry Instructions"]
[]
["Limitations:  "]
["    * This tool does not adjust performance for mid-interval deassignments (units deassigned mid-interval)"]
["    * Ramp-in and ramp-out at shoulder intervals are not adjusted"]
["    * Italitized lines are calculated inputs."]
[]
["For the time period where the resource was actively providing regulation:"]
[]
["1) Capture resource response, which is the 10second-sample net energy of your resource, "]
["    and enter the data in column C"]
[]
["   This data is the unit specific response to the combination of energy dispatch and regulation signal."]
[]
["2) Capture 10 second-sample data for the economic basepoint (ECOBP) or setpoint that the "]
["    resource was regulating around during the time period, and enter the data in column D"]
[]
["3) Provide the Ramp Rate Limit that was in effect for the resource during the time period, and"]
["    enter the data in column E.  "]
[]
["   This data should match the ramp rate data submitted in Markets Gateway.  If not available, use 9999"]
[]
["Using the data from the steps above, columns F and G will calculate a ramped basepoint per 10 second interval."]
[]
["4) Capture 10 second-sample for the PJM-assigned regulation (AREG), and enter the data in"]
["    column H"]
[]
["5) Capture 10 second-sample data for the Fleet Total Regulation Capability (TREG), and enter the"]
["    data in column I."]
[]
["    This data should match the data submitted by your fleet to PJM.  It should equal the total "]
["    of all PJM-assigned regulation (AREG) across all resources in your fleet."]
[]
["6) Capture 10 second-sample data for the Fleet Regulation Signal (REGA or REGD), and enter the"]
["    data in column J."]
[]
["7) If the Load Basepoint radio button is checked, Ramped EcoBP is equal to Raw EcoBP."]
[]
[]
["Column K calculates a unit-specific share of the regulation signal.  This is the ideal response that is "]
["expected from the resource."]
[]
["Column L is the desired net energy of the resource, which is calculated as the sum of the ramp-rate"]
["limited economic basepoint plus the ramp-rate limited share of the regulation signal."]
[]
["Column M is the resource response, which is calculated as the difference of the net energy (Column C) "]
["minus the ramp-rate limited economic basepoint (Column G)."]
[]
["Chart 1 depicts the relationship between resource energy, economic basepoint, and desired energy."]
[]
["Chart 2 depicts the difference between what the resource acutally performs and what it is requested"]
["to perform. "]

{"sheet":"Data Entry Instructions","index":1,"n_rows":60,"n_cols":1,"rows_kept":60,"cut":false,"hidden":false,"merged":[]}
["Data Entry Instructions"]
[]
["Limitations:  "]
["    * This tool does not adjust performance for mid-interval deassignments (resources deassigned mid-interval)"]
["    * Ramp-in and ramp-out at shoulder intervals are not adjusted"]
["    * Italitized lines are calculated inputs."]
[]
["For the time period where the resource was actively providing regulation:"]
[]
["1) Capture resource response, which is the 10 second-sample net energy of your resource, "]
["    and enter the data in column C"]
[]
["   This data is the resource specific response to the combination of energy dispatch and regulation signal."]
[]
["2) Capture 10 second-sample data for the economic basepoint (ECOBP) or setpoint that the "]
["    resource was regulating around during the time period, and enter the data in column D"]
[]
["3) Provide the Ramp Rate Limit that was in effect for the resource during the time period, and"]
["    enter the data in column E.  "]
[]
["   This data should match the ramp rate data submitted in Markets Gateway.  If not available, use 9999"]
[]
["Using the data from the steps above, columns F and G will calculate a ramped basepoint per 10 second interval."]
[]
["4) Capture 10 second-sample for the PJM-assigned regulation (ARegUp or ARegDn), and enter the data in"]
["    column H"]
[]
["5) Capture 10 second-sample data for the Fleet Total Regulation Capability (TRegUp or TRegDn), and enter the"]
["    data in column I."]
[]
["    This data should match the data submitted by your fleet to PJM.  It should equal the total "]
["    of all PJM-assigned regulation (ARegUp or ARegDn) across all resources in your fleet."]
[]
["6) Capture 10 second-sample data for the Fleet Regulation Signal, and enter the"]
["    data in column J."]
[]
["7) If the Load Basepoint radio button is checked, Ramped EcoBP is equal to Raw EcoBP."]
[]
["8) Fill out Requation Test Information in Column R1 through R7."]
["R1 - Regulation Resource Name"]
["R2 - Regulation Resource Testing Company Name"]
["R3 - Regulation Tested MW (numerical only)"]
["R4 - Date in MM/DD/YYYY format"]
["R5 - Regulation Resource ID Number if known (numerical only)"]
["R6 - Resource Market ID Number (numerical only)"]
["R7 - Select either RegUp or RegDn Market"]
[]
["Column K calculates a resource-specific share of the regulation signal.  This is the ideal response that is "]
["expected from the resource."]
[]
["Column L is the desired net energy of the resource, which is calculated as the sum of the ramp-rate"]
["limited economic basepoint plus the ramp-rate limited share of the regulation signal."]
[]
["Column M is the resource response, which is calculated as the difference of the net energy (Column C) "]
["minus the ramp-rate limited economic basepoint (Column G)."]
[]
["Chart 1 depicts the relationship between resource energy, economic basepoint, and desired energy."]
[]
["Chart 2 depicts the difference between what the resource acutally performs and what it is requested"]
["to perform. "]

{"sheet":"Score Template","index":2,"n_rows":339,"n_cols":57,"rows_kept":339,"cut":false,"hidden":false,"merged":[[7,15,7,26],[0,24,0,25]]}
[null,null,null,null,null,null,null,null,null,null,null,null,null,null,null,"Testing Resource"]
[null,null,null,null,null,null,null,null,null,null,null,null,null,null,null,"Testing Company",null,null,null,null,"Start Time"]
[null,null,null,"Weight",null,null,null,"Interval Avg",null,null,null,null,null,null,null,"Tested MW",null,null,null,null,"B39"]
[null,null,"Precision",{"$f":"1-SUM(D2:D3)","v":1},null,"Precision Score",null,{"$f":"IF(AT5 = 1, AQ6, IF(AT5 = 2, AR6, AS6) )","v":0},null,null,null,null,"Denominator",{"$f":"IF( AT5 = 1, AVERAGE(H39:H397), AO39 )","v":0},null,"Date and Time",null,null,null,null,null,null,null,null,null,null,null,null,null,null,null,"SlopeToUse",1,"Signal",null,null,null,null,null,null,null,null,null,null,null,"Precision Method",null,null,1,"AREG Denominator",null,null,null,null,null,null,"RegUp"]
[null,null,"Slope Limit",0,null,"Performance Score",null,{"$f":"H4","v":0},null,false,null,null,"Interval Mileage",{"$f":"BB6","v":0},null,"Reg ID",null,null,null,null,"End Time",null,null,null,null,null,null,null,null,null,null,2,2,"Percent",null,null,null,null,null,null,null,null,"Prec. 1","Prec. 2","Prec. 3",3,null,null,2,"AvgAbsSignal Denominator",null,null,null,"Mileage",null,null,"RegDn"]
[null,null,"StDev Limit",0.05,null,null,null,null,null,null,null,null,null,null,null,"Resource ID",null,null,null,null,"B279",null,null,null,null,null,null,null,null,null,null,null,null,null,null,null,null,null,null,null,null,null,{"$f":"AVERAGE(AQ39:AQ398)","v":0},{"$f":"AVERAGE(AR39:AR398)","v":0},{"$f":"AVERAGE(AS39:AS398)","v":0},null,null,null,null,null,null,null,null,{"$f":"SUM(BB39:BB398)","v":0}]
[null,null,null,null,null,null,null,null,null,null,"Signal",null,"Response",null,null,"RegUp/RegDn",null,"RegUp"]
["Interval","TIME","AGC MW","Raw ECOBP","Energy RR at AGC MW (MW/min)","RR MW/10sec","Ramped EcoBP","Unit AREG","Fleet TREG","Fleet Regulation Control Signal","Raw Unit REG","Raw EcoBP + Raw Reg","Unit Resp.","Mileage",null,"RESOURCE REPORT",null,null,null,null,null,null,null,null,null,null,null,null,null,"Reg Signal Percent","5-minute Signal Slope","5-minute Signal Percent Slope","Slope Used","Slope Limit","-Slope Limit","StDev Used","StdDev Limit",null,null,"Absolute Signal","Average Absolute  Signal",null,"Precis. Score AREG","Precis. Score AbsSig","Precis. Score Blend",null,null,null,null,"Precis. Score","+AREG","-AREG",null,"Mileage",null,"StdDev of Slopes","StdDev of Percent Signal"]
[null,{"$f":"IF(B10-TIME(0,0,5)<=0,TIME(23,59,50),IF(B10-TIME(0,0,10)<0,TIME(0,0,0),B10-TIME(0,0,10)))","v":"23:55:00"},null,null,null,{"$f":"E9/6","v":0},{"$f":"D9","v":0},null,null,null,{"$f":"IF(I9 = 0, 0, H9 * J9 / I9)","v":0},{"$f":"D9 + K9","v":0},{"$f":"C9 - G9","v":0},null,null,null,null,null,null,null,null,null,null,null,null,null,null,null,null,null,null,null,null,null,null,null,null,null,null,null,null,null,null,null,null,null,null,null,null,null,{"$f":"H9","v":0},{"$f":"-AY9","v":0}]
[null,"23:55:10",null,null,null,0,{"$f":"IF($J$5=TRUE,D10,IF( ABS(D10 -G9) < F10, D10,G9 + SIGN( D10 - G9 ) * F10 ))","v":0},null,null,null,0,0,0,null,null,null,null,null,null,null,null,null,null,null,null,null,null,null,null,null,null,null,null,null,null,null,null,null,null,null,null,null,null,null,null,null,null,null,null,null,0,{"$f":"-AY10","v":0}]
[null,"23:55:20",null,null,null,0,0,null,null,null,0,0,0,null,null,null,null,null,null,null,null,null,null,null,null,null,null,null,null,null,null,null,null,null,null,null,null,null,null,null,null,null,null,null,null,null,null,null,null,null,0,0]
[null,"23:55:30",null,null,null,0,0,null,null,null,0,0,0,null,null,null,null,null,null,null,null,null,null,null,null,null,null,null,null,null,null,null,null,null,null,null,null,null,null,null,null,null,null,null,null,null,null,null,null,null,0,0]
[null,"23:55:40",null,null,null,0,0,null,null,null,0,0,0,null,null,null,null,null,null,null,null,null,null,null,null,null,null,null,null,null,null,null,null,null,null,null,null,null,null,null,null,null,null,null,null,null,null,null,null,null,0,0]
[null,"23:55:50",null,null,null,0,0,null,null,null,0,0,0,null,null,null,null,null,null,null,null,null,null,null,null,null,null,null,null,null,null,null,null,null,null,null,null,null,null,null,null,null,null,null,null,null,null,null,null,null,0,0]
[null,"23:56:00",null,null,null,0,0,null,null,null,0,0,0,null,null,null,null,null,null,null,null,null,null,null,null,null,null,null,null,null,null,null,null,null,null,null,null,null,null,null,null,null,null,null,null,null,null,null,null,null,0,0]
[null,"23:56:10",null,null,null,0,0,null,null,null,0,0,0,null,null,null,null,null,null,null,null,null,null,null,null,null,null,null,null,null,null,null,null,null,null,null,null,null,null,null,null,null,null,null,null,null,null,null,null,null,0,0]
[null,"23:56:20",null,null,null,0,0,null,null,null,0,0,0,null,null,null,null,null,null,null,null,null,null,null,null,null,null,null,null,null,null,null,null,null,null,null,null,null,null,null,null,null,null,null,null,null,null,null,null,null,0,0]
[null,"23:56:30",null,null,null,0,0,null,null,null,0,0,0,null,null,null,null,null,null,null,null,null,null,null,null,null,null,null,null,null,null,null,null,null,null,null,null,null,null,null,null,null,null,null,null,null,null,null,null,null,0,0]
[null,"23:56:40",null,null,null,0,0,null,null,null,0,0,0,null,null,null,null,null,null,null,null,null,null,null,null,null,null,null,null,null,null,null,null,null,null,null,null,null,null,null,null,null,null,null,null,null,null,null,null,null,0,0]
[null,"23:56:50",null,null,null,0,0,null,null,null,0,0,0,null,null,null,null,null,null,null,null,null,null,null,null,null,null,null,null,null,null,null,null,null,null,null,null,null,null,null,null,null,null,null,null,null,null,null,null,null,0,0]
[null,"23:57:00",null,null,null,0,0,null,null,null,0,0,0,null,null,null,null,null,null,null,null,null,null,null,null,null,null,null,null,null,null,null,null,null,null,null,null,null,null,null,null,null,null,null,null,null,null,null,null,null,0,0]
[null,"23:57:10",null,null,null,0,0,null,null,null,0,0,0,null,null,null,null,null,null,null,null,null,null,null,null,null,null,null,null,null,null,null,null,null,null,null,null,null,null,null,null,null,null,null,null,null,null,null,null,null,0,0]
[null,"23:57:20",null,null,null,0,0,null,null,null,0,0,0,null,null,null,null,null,null,null,null,null,null,null,null,null,null,null,null,null,null,null,null,null,null,null,null,null,null,null,null,null,null,null,null,null,null,null,null,null,0,0]
[null,"23:57:30",null,null,null,0,0,null,null,null,0,0,0,null,null,null,null,null,null,null,null,null,null,null,null,null,null,null,null,null,null,null,null,null,null,null,null,null,null,null,null,null,null,null,null,null,null,null,null,null,0,0]
[null,"23:57:40",null,null,null,0,0,null,null,null,0,0,0,null,null,null,null,null,null,null,null,null,null,null,null,null,null,null,null,null,null,null,null,null,null,null,null,null,null,null,null,null,null,null,null,null,null,null,null,null,0,0]
[null,"23:57:50",null,null,null,0,0,null,null,null,0,0,0,null,null,null,null,null,null,null,null,null,null,null,null,null,null,null,null,null,null,null,null,null,null,null,null,null,null,null,null,null,null,null,null,null,null,null,null,null,0,0]
[null,"23:58:00",null,null,null,0,0,null,null,null,0,0,0,null,null,null,null,null,null,null,null,null,null,null,null,null,null,null,null,null,null,null,null,null,null,null,null,null,null,null,null,null,null,null,null,null,null,null,null,null,0,0]
[null,"23:58:10",null,null,null,0,0,null,null,null,0,0,0,null,null,null,null,null,null,null,null,null,null,null,null,null,null,null,null,null,null,null,null,null,null,null,null,null,null,null,null,null,null,null,null,null,null,null,null,null,0,0]
[null,"23:58:20",null,null,null,0,0,null,null,null,0,0,0,null,null,null,null,null,null,null,null,null,null,null,null,null,null,null,null,null,null,null,null,null,null,null,null,null,null,null,null,null,null,null,null,null,null,null,null,null,0,0]
[null,"23:58:30",null,null,null,0,0,null,null,null,0,0,0,null,null,null,null,null,null,null,null,null,null,null,null,null,null,null,null,null,null,null,null,null,null,null,null,null,null,null,null,null,null,null,null,null,null,null,null,null,0,0]
[null,"23:58:40",null,null,null,0,0,null,null,null,0,0,0,null,null,null,null,null,null,null,null,null,null,null,null,null,null,null,null,null,null,null,null,null,null,null,null,null,null,null,null,null,null,null,null,null,null,null,null,null,0,0]
[null,"23:58:50",null,null,null,0,0,null,null,null,0,0,0,null,null,null,null,null,null,null,null,null,null,null,null,null,null,null,null,null,null,null,null,null,null,null,null,null,null,null,null,null,null,null,null,null,null,null,null,null,0,0]
[null,"23:59:00",null,null,null,0,0,null,null,null,0,0,0,null,null,null,null,null,null,null,null,null,null,null,null,null,null,null,null,null,null,null,null,null,null,null,null,null,null,null,null,null,null,null,null,null,null,null,null,null,0,0]
[null,"23:59:10",null,null,null,0,0,null,null,null,0,0,0,null,null,null,null,null,null,null,null,null,null,null,null,null,null,null,null,null,null,null,null,null,null,null,null,null,null,null,null,null,null,null,null,null,null,null,null,null,0,0]
[null,"23:59:20",null,null,null,0,0,null,null,null,0,0,0,null,null,null,null,null,null,null,null,null,null,null,null,null,null,null,null,null,null,null,null,null,null,null,null,null,null,null,null,null,null,null,null,null,null,null,null,null,0,0]
[null,"23:59:30",null,null,null,0,0,null,null,null,0,0,0,null,null,null,null,null,null,null,null,null,null,null,null,null,null,null,null,null,null,null,null,null,null,null,null,null,null,null,null,null,null,null,null,null,null,null,null,null,0,0]
[null,"23:59:40",null,null,null,0,0,null,null,null,0,0,0,null,null,null,null,null,null,null,null,null,null,null,null,null,null,null,null,null,null,null,null,null,null,null,null,null,null,null,null,null,null,null,null,null,null,null,null,null,0,0]
[null,{"$f":"IF(B39-TIME(0,0,5)<=0,TIME(23,59,50),IF(B39-TIME(0,0,10)<0,TIME(0,0,0),B39-TIME(0,0,10)))","v":"23:59:50"},null,null,null,0,0,null,null,null,0,0,0,null,null,null,null,null,null,null,null,null,null,null,null,null,null,null,null,null,null,null,null,null,null,null,null,null,null,null,null,null,null,null,null,null,null,null,null,null,0,0]
[1,{"$f":"R4","v":"00:00:00"},null,null,null,0,0,null,null,null,0,0,0,{"$f":"BB9","v":0},null,null,null,null,null,null,null,null,null,null,null,null,null,null,null,{"$f":"MIN(MAX(IF(I39 = 0, 0, J39 / I39 ), -1), 1)","v":0},{"$f":"SLOPE( K39:K69, $A39:$A69 )","v":0},{"$f":"SLOPE( AD39:AD69, $A39:$A69 )","v":0},{"$f":"IF( $AF$5 = 1, AE39, AF39)","v":0},{"$f":"$D$5","v":0},{"$f":"-AH39","v":0},{"$f":"STDEV( AD39:AD69)","v":0},{"$f":"$D$6","v":0.05},null,null,{"$f":"ABS(K39)","v":0},{"$f":"AVERAGE(AN39:AN278)","v":0},null,{"$f":"IF(I39=0,0,MIN(MAX(1 - ABS(M40 - K39) / H39, 0), 1))","v":0},{"$f":"IF(I39=0,0,IF(MAX(M39:M99) = MIN(M39:M99), 0, IF(MIN(H39:H69)=0,\"NaN\",MIN(MAX(1 - ABS(M40 - K39) / $AO$39, 0), 1 ))))","v":0},{"$f":"IF(I39=0,0,IF(MAX(M39:M99) = MIN(M39:M99), 0, IF(MIN(H39:H69)=0,\"NaN\",MIN(MAX(1 - ABS(M40 - K39) / AVERAGE($AO$39,H39), 0), 1 ))))","v":0},null,null,null,null,{"$f":"IF($AT$5 = 1, AQ39, AR39)","v":0},0,{"$f":"-AY39","v":0},null,{"$f":"AD39","v":0},null,{"$f":"STDEV( AG39:AG69)","v":0},{"$f":"STDEV( AD39:AD69)","v":0}]
[2,{"$f":"B39 + TIME(0,0,10)","v":"00:00:10"},null,null,null,0,0,null,null,null,0,0,0,0,null,null,null,null,null,null,null,null,null,null,null,null,null,null,null,0,0,{"$f":"SLOPE( AD40:AD70, $A40:$A70 )","v":0},{"$f":"IF( $AF$5 = 1, AE40, AF40)","v":0},{"$f":"$D$5","v":0},{"$f":"-AH40","v":0},{"$f":"STDEV( AD40:AD70)","v":0},{"$f":"$D$6","v":0.05},null,null,0,null,null,0,0,0,null,null,null,null,{"$f":"IF($AT$5 = 1, AQ40, AR40)","v":0},0,{"$f":"-AY40","v":0},null,{"$f":"ABS(AD40 - AD39)","v":0},null,0,0]
[3,{"$f":"B40 + TIME(0,0,10)","v":"00:00:20"},null,null,null,0,0,null,null,null,0,0,0,0,null,null,null,null,null,null,null,null,null,null,null,null,null,null,null,0,0,0,0,0,0,0,0.05,null,null,0,null,null,0,0,0,null,null,null,null,0,0,0,null,0,null,0,0]
[4,"00:00:30",null,null,null,0,0,null,null,null,0,0,0,0,null,null,null,null,null,null,null,null,null,null,null,null,null,null,null,0,0,0,0,0,0,0,0.05,null,null,0,null,null,0,0,0,null,null,null,null,0,0,0,null,0,null,0,0]
[5,"00:00:40",null,null,null,0,0,null,null,null,0,0,0,0,null,null,null,null,null,null,null,null,null,null,null,null,null,null,null,0,0,0,0,0,0,0,0.05,null,null,0,null,null,0,0,0,null,null,null,null,0,0,0,null,0,null,0,0]
[6,"00:00:50",null,null,null,0,0,null,null,null,0,0,0,0,null,null,null,null,null,null,null,null,null,null,null,null,null,null,null,0,0,0,0,0,0,0,0.05,null,null,0,null,null,0,0,0,null,null,null,null,0,0,0,null,0,null,0,0]
[7,"00:01:00",null,null,null,0,0,null,null,null,0,0,0,0,null,null,null,null,null,null,null,null,null,null,null,null,null,null,null,0,0,0,0,0,0,0,0.05,null,null,0,null,null,0,0,0,null,null,null,null,0,0,0,null,0,null,0,0]
[8,"00:01:10",null,null,null,0,0,null,null,null,0,0,0,0,null,null,null,null,null,null,null,null,null,null,null,null,null,null,null,0,0,0,0,0,0,0,0.05,null,null,0,null,null,0,0,0,null,null,null,null,0,0,0,null,0,null,0,0]
[9,"00:01:20",null,null,null,0,0,null,null,null,0,0,0,0,null,null,null,null,null,null,null,null,null,null,null,null,null,null,null,0,0,0,0,0,0,0,0.05,null,null,0,null,null,0,0,0,null,null,null,null,0,0,0,null,0,null,0,0]
[10,"00:01:30",null,null,null,0,0,null,null,null,0,0,0,0,null,null,null,null,null,null,null,null,null,null,null,null,null,null,null,0,0,0,0,0,0,0,0.05,null,null,0,null,null,0,0,0,null,null,null,null,0,0,0,null,0,null,0,0]
[11,"00:01:40",null,null,null,0,0,null,null,null,0,0,0,0,null,null,null,null,null,null,null,null,null,null,null,null,null,null,null,0,0,0,0,0,0,0,0.05,null,null,0,null,null,0,0,0,null,null,null,null,0,0,0,null,0,null,0,0]
[12,"00:01:50",null,null,null,0,0,null,null,null,0,0,0,0,null,null,null,null,null,null,null,null,null,null,null,null,null,null,null,0,0,0,0,0,0,0,0.05,null,null,0,null,null,0,0,0,null,null,null,null,0,0,0,null,0,null,0,0]
[13,"00:02:00",null,null,null,0,0,null,null,null,0,0,0,0,null,null,null,null,null,null,null,null,null,null,null,null,null,null,null,0,0,0,0,0,0,0,0.05,null,null,0,null,null,0,0,0,null,null,null,null,0,0,0,null,0,null,0,0]
[14,"00:02:10",null,null,null,0,0,null,null,null,0,0,0,0,null,null,null,null,null,null,null,null,null,null,null,null,null,null,null,0,0,0,0,0,0,0,0.05,null,null,0,null,null,0,0,0,null,null,null,null,0,0,0,null,0,null,0,0]
[15,"00:02:20",null,null,null,0,0,null,null,null,0,0,0,0,null,null,null,null,null,null,null,null,null,null,null,null,null,null,null,0,0,0,0,0,0,0,0.05,null,null,0,null,null,0,0,0,null,null,null,null,0,0,0,null,0,null,0,0]
[16,"00:02:30",null,null,null,0,0,null,null,null,0,0,0,0,null,null,null,null,null,null,null,null,null,null,null,null,null,null,null,0,0,0,0,0,0,0,0.05,null,null,0,null,null,0,0,0,null,null,null,null,0,0,0,null,0,null,0,0]
[17,"00:02:40",null,null,null,0,0,null,null,null,0,0,0,0,null,null,null,null,null,null,null,null,null,null,null,null,null,null,null,0,0,0,0,0,0,0,0.05,null,null,0,null,null,0,0,0,null,null,null,null,0,0,0,null,0,null,0,0]
[18,"00:02:50",null,null,null,0,0,null,null,null,0,0,0,0,null,null,null,null,null,null,null,null,null,null,null,null,null,null,null,0,0,0,0,0,0,0,0.05,null,null,0,null,null,0,0,0,null,null,null,null,0,0,0,null,0,null,0,0]
[19,"00:03:00",null,null,null,0,0,null,null,null,0,0,0,0,null,null,null,null,null,null,null,null,null,null,null,null,null,null,null,0,0,0,0,0,0,0,0.05,null,null,0,null,null,0,0,0,null,null,null,null,0,0,0,null,0,null,0,0]
[20,"00:03:10",null,null,null,0,0,null,null,null,0,0,0,0,null,null,null,null,null,null,null,null,null,null,null,null,null,null,null,0,0,0,0,0,0,0,0.05,null,null,0,null,null,0,0,0,null,null,null,null,0,0,0,null,0,null,0,0]
[21,"00:03:20",null,null,null,0,0,null,null,null,0,0,0,0,null,null,null,null,null,null,null,null,null,null,null,null,null,null,null,0,0,0,0,0,0,0,0.05,null,null,0,null,null,0,0,0,null,null,null,null,0,0,0,null,0,null,0,0]
[22,"00:03:30",null,null,null,0,0,null,null,null,0,0,0,0,null,null,null,null,null,null,null,null,null,null,null,null,null,null,null,0,0,0,0,0,0,0,0.05,null,null,0,null,null,0,0,0,null,null,null,null,0,0,0,null,0,null,0,0]
[23,"00:03:40",null,null,null,0,0,null,null,null,0,0,0,0,null,null,null,null,null,null,null,null,null,null,null,null,null,null,null,0,0,0,0,0,0,0,0.05,null,null,0,null,null,0,0,0,null,null,null,null,0,0,0,null,0,null,0,0]
[24,"00:03:50",null,null,null,0,0,null,null,null,0,0,0,0,null,null,null,null,null,null,null,null,null,null,null,null,null,null,null,0,0,0,0,0,0,0,0.05,null,null,0,null,null,0,0,0,null,null,null,null,0,0,0,null,0,null,0,0]
[25,"00:04:00",null,null,null,0,0,null,null,null,0,0,0,0,null,null,null,null,null,null,null,null,null,null,null,null,null,null,null,0,0,0,0,0,0,0,0.05,null,null,0,null,null,0,0,0,null,null,null,null,0,0,0,null,0,null,0,0]
[26,"00:04:10",null,null,null,0,0,null,null,null,0,0,0,0,null,null,null,null,null,null,null,null,null,null,null,null,null,null,null,0,0,0,0,0,0,0,0.05,null,null,0,null,null,0,0,0,null,null,null,null,0,0,0,null,0,null,0,0]
[27,"00:04:20",null,null,null,0,0,null,null,null,0,0,0,0,null,null,null,null,null,null,null,null,null,null,null,null,null,null,null,0,0,0,0,0,0,0,0.05,null,null,0,null,null,0,0,0,null,null,null,null,0,0,0,null,0,null,0,0]
[28,"00:04:30",null,null,null,0,0,null,null,null,0,0,0,0,null,null,null,null,null,null,null,null,null,null,null,null,null,null,null,0,0,0,0,0,0,0,0.05,null,null,0,null,null,0,0,0,null,null,null,null,0,0,0,null,0,null,0,0]
[29,"00:04:40",null,null,null,0,0,null,null,null,0,0,0,0,null,null,null,null,null,null,null,null,null,null,null,null,null,null,null,0,0,0,0,0,0,0,0.05,null,null,0,null,null,0,0,0,null,null,null,null,0,0,0,null,0,null,0,0]
[30,"00:04:50",null,null,null,0,0,null,null,null,0,0,0,0,null,null,null,null,null,null,null,null,null,null,null,null,null,null,null,0,0,0,0,0,0,0,0.05,null,null,0,null,null,0,0,0,null,null,null,null,0,0,0,null,0,null,0,0]
[31,"00:05:00",null,null,null,0,0,null,null,null,0,0,0,0,null,null,null,null,null,null,null,null,null,null,null,null,null,null,null,0,0,0,0,0,0,0,0.05,null,null,0,null,null,0,0,0,null,null,null,null,0,0,0,null,0,null,0,0]
[32,"00:05:10",null,null,null,0,0,null,null,null,0,0,0,0,null,null,null,null,null,null,null,null,null,null,null,null,null,null,null,0,0,0,0,0,0,0,0.05,null,null,0,null,null,0,0,0,null,null,null,null,0,0,0,null,0,null,0,0]
[33,"00:05:20",null,null,null,0,0,null,null,null,0,0,0,0,null,null,null,null,null,null,null,null,null,null,null,null,null,null,null,0,0,0,0,0,0,0,0.05,null,null,0,null,null,0,0,0,null,null,null,null,0,0,0,null,0,null,{"$f":"STDEV( AG71:AG101)","v":0},{"$f":"STDEV( AD71:AD101)","v":0}]
[34,"00:05:30",null,null,null,0,0,null,null,null,0,0,0,0,null,null,null,null,null,null,null,null,null,null,null,null,null,null,null,0,0,0,0,0,0,0,0.05,null,null,0,null,null,0,0,0,null,null,null,null,0,0,0,null,{"$f":"ABS(AD72 - AD71)","v":0},null,0,0]
[35,"00:05:40",null,null,null,{"$f":"E73/6","v":0},0,null,null,null,{"$f":"IF(I73 = 0, 0, H73 * J73 / I73)","v":0},{"$f":"D73 + K73","v":0},{"$f":"C73 - G73","v":0},0,null,null,null,null,null,null,null,null,null,null,null,null,null,null,null,0,0,0,0,0,0,0,0.05,null,null,0,null,null,0,0,0,null,null,null,null,0,{"$f":"H73","v":0},0,null,0,null,0,0]
[36,"00:05:50",null,null,null,0,{"$f":"IF($J$5=TRUE,D74,IF( ABS(D74 -G73) < F74, D74,G73 + SIGN( D74 - G73 ) * F74 ))","v":0},null,null,null,0,0,0,0,null,null,null,null,null,null,null,null,null,null,null,null,null,null,null,0,0,0,0,0,0,0,0.05,null,null,0,null,null,0,0,0,null,null,null,null,0,0,0,null,0,null,0,0]
[37,"00:06:00",null,null,null,0,0,null,null,null,0,0,0,0,null,null,null,null,null,null,null,null,null,null,null,null,null,null,null,0,0,0,0,0,0,0,0.05,null,null,0,null,null,0,0,0,null,null,null,null,0,0,0,null,0,null,0,0]
[38,"00:06:10",null,null,null,0,0,null,null,null,0,0,0,0,null,null,null,null,null,null,null,null,null,null,null,null,null,null,null,0,0,0,0,0,0,0,0.05,null,null,0,null,null,0,0,0,null,null,null,null,0,0,0,null,0,null,0,0]
[39,"00:06:20",null,null,null,0,0,null,null,null,0,0,0,0,null,null,null,null,null,null,null,null,null,null,null,null,null,null,null,0,0,0,0,0,0,0,0.05,null,null,0,null,null,0,0,0,null,null,null,null,0,0,0,null,0,null,0,0]
[40,"00:06:30",null,null,null,0,0,null,null,null,0,0,0,0,null,null,null,null,null,null,null,null,null,null,null,null,null,null,null,0,0,0,0,0,0,0,0.05,null,null,0,null,null,0,0,0,null,null,null,null,0,0,0,null,0,null,0,0]
[41,"00:06:40",null,null,null,0,0,null,null,null,0,0,0,0,null,null,null,null,null,null,null,null,null,null,null,null,null,null,null,0,0,0,0,0,0,0,0.05,null,null,0,null,null,0,0,0,null,null,null,null,0,0,0,null,0,null,0,0]
[42,"00:06:50",null,null,null,0,0,null,null,null,0,0,0,0,null,null,null,null,null,null,null,null,null,null,null,null,null,null,null,0,0,0,0,0,0,0,0.05,null,null,0,null,null,0,0,0,null,null,null,null,0,0,0,null,0,null,0,0]
[43,"00:07:00",null,null,null,0,0,null,null,null,0,0,0,0,null,null,null,null,null,null,null,null,null,null,null,null,null,null,null,0,0,0,0,0,0,0,0.05,null,null,0,null,null,0,0,0,null,null,null,null,0,0,0,null,0,null,0,0]
[44,"00:07:10",null,null,null,0,0,null,null,null,0,0,0,0,null,null,null,null,null,null,null,null,null,null,null,null,null,null,null,0,0,0,0,0,0,0,0.05,null,null,0,null,null,0,0,0,null,null,null,null,0,0,0,null,0,null,0,0]
[45,"00:07:20",null,null,null,0,0,null,null,null,0,0,0,0,null,null,null,null,null,null,null,null,null,null,null,null,null,null,null,0,0,0,0,0,0,0,0.05,null,null,0,null,null,0,0,0,null,null,null,null,0,0,0,null,0,null,0,0]
[46,"00:07:30",null,null,null,0,0,null,null,null,0,0,0,0,null,null,null,null,null,null,null,null,null,null,null,null,null,null,null,0,0,0,0,0,0,0,0.05,null,null,0,null,null,0,0,0,null,null,null,null,0,0,0,null,0,null,0,0]
[47,"00:07:40",null,null,null,0,0,null,null,null,0,0,0,0,null,null,null,null,null,null,null,null,null,null,null,null,null,null,null,0,0,0,0,0,0,0,0.05,null,null,0,null,null,0,0,0,null,null,null,null,0,0,0,null,0,null,0,0]
[48,"00:07:50",null,null,null,0,0,null,null,null,0,0,0,0,null,null,null,null,null,null,null,null,null,null,null,null,null,null,null,0,0,0,0,0,0,0,0.05,null,null,0,null,null,0,0,0,null,null,null,null,0,0,0,null,0,null,0,0]
[49,"00:08:00",null,null,null,0,0,null,null,null,0,0,0,0,null,null,null,null,null,null,null,null,null,null,null,null,null,null,null,0,0,0,0,0,0,0,0.05,null,null,0,null,null,0,0,0,null,null,null,null,0,0,0,null,0,null,0,0]
[50,"00:08:10",null,null,null,0,0,null,null,null,0,0,0,0,null,null,null,null,null,null,null,null,null,null,null,null,null,null,null,0,0,0,0,0,0,0,0.05,null,null,0,null,null,0,0,0,null,null,null,null,0,0,0,null,0,null,0,0]
[51,"00:08:20",null,null,null,0,0,null,null,null,0,0,0,0,null,null,null,null,null,null,null,null,null,null,null,null,null,null,null,0,0,0,0,0,0,0,0.05,null,null,0,null,null,0,0,0,null,null,null,null,0,0,0,null,0,null,0,0]
[52,"00:08:30",null,null,null,0,0,null,null,null,0,0,0,0,null,null,null,null,null,null,null,null,null,null,null,null,null,null,null,0,0,0,0,0,0,0,0.05,null,null,0,null,null,0,0,0,null,null,null,null,0,0,0,null,0,null,0,0]
[53,"00:08:40",null,null,null,0,0,null,null,null,0,0,0,0,null,null,null,null,null,null,null,null,null,null,null,null,null,null,null,0,0,0,0,0,0,0,0.05,null,null,0,null,null,0,0,0,null,null,null,null,0,0,0,null,0,null,0,0]
[54,"00:08:50",null,null,null,0,0,null,null,null,0,0,0,0,null,null,null,null,null,null,null,null,null,null,null,null,null,null,null,0,0,0,0,0,0,0,0.05,null,null,0,null,null,0,0,0,null,null,null,null,0,0,0,null,0,null,0,0]
[55,"00:09:00",null,null,null,0,0,null,null,null,0,0,0,0,null,null,null,null,null,null,null,null,null,null,null,null,null,null,null,0,0,0,0,0,0,0,0.05,null,null,0,null,null,0,0,0,null,null,null,null,0,0,0,null,0,null,0,0]
[56,"00:09:10",null,null,null,0,0,null,null,null,0,0,0,0,null,null,null,null,null,null,null,null,null,null,null,null,null,null,null,0,0,0,0,0,0,0,0.05,null,null,0,null,null,0,0,0,null,null,null,null,0,0,0,null,0,null,0,0]
[57,"00:09:20",null,null,null,0,0,null,null,null,0,0,0,0,null,null,null,null,null,null,null,null,null,null,null,null,null,null,null,0,0,0,0,0,0,0,0.05,null,null,0,null,null,0,0,0,null,null,null,null,0,0,0,null,0,null,0,0]
[58,"00:09:30",null,null,null,0,0,null,null,null,0,0,0,0,null,null,null,null,null,null,null,null,null,null,null,null,null,null,null,0,0,0,0,0,0,0,0.05,null,null,0,null,null,0,0,0,null,null,null,null,0,0,0,null,0,null,0,0]
[59,"00:09:40",null,null,null,0,0,null,null,null,0,0,0,0,null,null,null,null,null,null,null,null,null,null,null,null,null,null,null,0,0,0,0,0,0,0,0.05,null,null,0,null,null,0,0,0,null,null,null,null,0,0,0,null,0,null,0,0]
[60,"00:09:50",null,null,null,0,0,null,null,null,0,0,0,0,null,null,null,null,null,null,null,null,null,null,null,null,null,null,null,0,0,0,0,0,0,0,0.05,null,null,0,null,null,0,0,0,null,null,null,null,0,0,0,null,0,null,0,0]
[61,"00:10:00",null,null,null,0,0,null,null,null,0,0,0,0,null,null,null,null,null,null,null,null,null,null,null,null,null,null,null,0,0,0,0,0,0,0,0.05,null,null,0,null,null,0,0,0,null,null,null,null,0,0,0,null,0,null,0,0]
[62,"00:10:10",null,null,null,0,0,null,null,null,0,0,0,0,null,null,null,null,null,null,null,null,null,null,null,null,null,null,null,0,0,0,0,0,0,0,0.05,null,null,0,null,null,0,0,0,null,null,null,null,0,0,0,null,0,null,0,0]
[63,"00:10:20",null,null,null,0,0,null,null,null,0,0,0,0,null,null,null,null,null,null,null,null,null,null,null,null,null,null,null,0,0,0,0,0,0,0,0.05,null,null,0,null,null,0,0,0,null,null,null,null,0,0,0,null,0,null,0,0]
[64,"00:10:30",null,null,null,0,0,null,null,null,0,0,0,0,null,null,null,null,null,null,null,null,null,null,null,null,null,null,null,0,0,0,0,0,0,0,0.05,null,null,0,null,null,0,0,0,null,null,null,null,0,0,0,null,0,null,0,0]
[65,"00:10:40",null,null,null,0,0,null,null,null,0,0,0,{"$f":"BB73","v":0},null,null,null,null,null,null,null,null,null,null,null,null,null,null,null,{"$f":"MIN(MAX(IF(I103 = 0, 0, J103 / I103 ), -1), 1)","v":0},{"$f":"SLOPE( K103:K133, $A103:$A133 )","v":0},0,0,0,0,0,0.05,null,null,{"$f":"ABS(K103)","v":0},null,null,{"$f":"IF(I103=0,0,MIN(MAX(1 - ABS(M104 - K103) / H103, 0), 1))","v":0},{"$f":"IF(I103=0,0,IF(MAX(M103:M163) = MIN(M103:M163), 0, IF(MIN(H103:H133)=0,\"NaN\",MIN(MAX(1 - ABS(M104 - K103) / $AO$39, 0), 1 ))))","v":0},{"$f":"IF(I103=0,0,IF(MAX(M103:M163) = MIN(M103:M163), 0, IF(MIN(H103:H133)=0,\"NaN\",MIN(MAX(1 - ABS(M104 - K103) / AVERAGE($AO$39,H103), 0), 1 ))))","v":0},null,null,null,null,0,0,0,null,0,null,{"$f":"STDEV( AG103:AG133)","v":0},{"$f":"STDEV( AD103:AD133)","v":0}]
[66,"00:10:50",null,null,null,0,0,null,null,null,0,0,0,0,null,null,null,null,null,null,null,null,null,null,null,null,null,null,null,0,0,{"$f":"SLOPE( AD104:AD134, $A104:$A134 )","v":0},{"$f":"IF( $AF$5 = 1, AE104, AF104)","v":0},{"$f":"$D$5","v":0},{"$f":"-AH104","v":0},{"$f":"STDEV( AD104:AD134)","v":0},{"$f":"$D$6","v":0.05},null,null,0,null,null,0,0,0,null,null,null,null,{"$f":"IF($AT$5 = 1, AQ104, AR104)","v":0},0,{"$f":"-AY104","v":0},null,{"$f":"ABS(AD104 - AD103)","v":0},null,0,0]
[67,{"$f":"B104 + TIME(0,0,10)","v":"00:11:00"},null,null,null,0,0,null,null,null,0,0,0,0,null,null,null,null,null,null,null,null,null,null,null,null,null,null,null,0,0,0,0,0,0,0,0.05,null,null,0,null,null,0,0,0,null,null,null,null,0,0,0,null,0,null,0,0]
[68,"00:11:10",null,null,null,0,0,null,null,null,0,0,0,0,null,null,null,null,null,null,null,null,null,null,null,null,null,null,null,0,0,0,0,0,0,0,0.05,null,null,0,null,null,0,0,0,null,null,null,null,0,0,0,null,0,null,0,0]
[69,"00:11:20",null,null,null,0,0,null,null,null,0,0,0,0,null,null,null,null,null,null,null,null,null,null,null,null,null,null,null,0,0,0,0,0,0,0,0.05,null,null,0,null,null,0,0,0,null,null,null,null,0,0,0,null,0,null,0,0]
[70,"00:11:30",null,null,null,0,0,null,null,null,0,0,0,0,null,null,null,null,null,null,null,null,null,null,null,null,null,null,null,0,0,0,0,0,0,0,0.05,null,null,0,null,null,0,0,0,null,null,null,null,0,0,0,null,0,null,0,0]
[71,"00:11:40",null,null,null,0,0,null,null,null,0,0,0,0,null,null,null,null,null,null,null,null,null,null,null,null,null,null,null,0,0,0,0,0,0,0,0.05,null,null,0,null,null,0,0,0,null,null,null,null,0,0,0,null,0,null,0,0]
[72,"00:11:50",null,null,null,0,0,null,null,null,0,0,0,0,null,null,null,null,null,null,null,null,null,null,null,null,null,null,null,0,0,0,0,0,0,0,0.05,null,null,0,null,null,0,0,0,null,null,null,null,0,0,0,null,0,null,0,0]
[73,"00:12:00",null,null,null,0,0,null,null,null,0,0,0,0,null,null,null,null,null,null,null,null,null,null,null,null,null,null,null,0,0,0,0,0,0,0,0.05,null,null,0,null,null,0,0,0,null,null,null,null,0,0,0,null,0,null,0,0]
[74,"00:12:10",null,null,null,0,0,null,null,null,0,0,0,0,null,null,null,null,null,null,null,null,null,null,null,null,null,null,null,0,0,0,0,0,0,0,0.05,null,null,0,null,null,0,0,0,null,null,null,null,0,0,0,null,0,null,0,0]
[75,"00:12:20",null,null,null,0,0,null,null,null,0,0,0,0,null,null,null,null,null,null,null,null,null,null,null,null,null,null,null,0,0,0,0,0,0,0,0.05,null,null,0,null,null,0,0,0,null,null,null,null,0,0,0,null,0,null,0,0]
[76,"00:12:30",null,null,null,0,0,null,null,null,0,0,0,0,null,null,null,null,null,null,null,null,null,null,null,null,null,null,null,0,0,0,0,0,0,0,0.05,null,null,0,null,null,0,0,0,null,null,null,null,0,0,0,null,0,null,0,0]
[77,"00:12:40",null,null,null,0,0,null,null,null,0,0,0,0,null,null,null,null,null,null,null,null,null,null,null,null,null,null,null,0,0,0,0,0,0,0,0.05,null,null,0,null,null,0,0,0,null,null,null,null,0,0,0,null,0,null,0,0]
[78,"00:12:50",null,null,null,0,0,null,null,null,0,0,0,0,null,null,null,null,null,null,null,null,null,null,null,null,null,null,null,0,0,0,0,0,0,0,0.05,null,null,0,null,null,0,0,0,null,null,null,null,0,0,0,null,0,null,0,0]
[79,"00:13:00",null,null,null,0,0,null,null,null,0,0,0,0,null,null,null,null,null,null,null,null,null,null,null,null,null,null,null,0,0,0,0,0,0,0,0.05,null,null,0,null,null,0,0,0,null,null,null,null,0,0,0,null,0,null,0,0]
[80,"00:13:10",null,null,null,0,0,null,null,null,0,0,0,0,null,null,null,null,null,null,null,null,null,null,null,null,null,null,null,0,0,0,0,0,0,0,0.05,null,null,0,null,null,0,0,0,null,null,null,null,0,0,0,null,0,null,0,0]
[81,"00:13:20",null,null,null,0,0,null,null,null,0,0,0,0,null,null,null,null,null,null,null,null,null,null,null,null,null,null,null,0,0,0,0,0,0,0,0.05,null,null,0,null,null,0,0,0,null,null,null,null,0,0,0,null,0,null,0,0]
[82,"00:13:30",null,null,null,0,0,null,null,null,0,0,0,0,null,null,null,null,null,null,null,null,null,null,null,null,null,null,null,0,0,0,0,0,0,0,0.05,null,null,0,null,null,0,0,0,null,null,null,null,0,0,0,null,0,null,0,0]
[83,"00:13:40",null,null,null,0,0,null,null,null,0,0,0,0,null,null,null,null,null,null,null,null,null,null,null,null,null,null,null,0,0,0,0,0,0,0,0.05,null,null,0,null,null,0,0,0,null,null,null,null,0,0,0,null,0,null,0,0]
[84,"00:13:50",null,null,null,0,0,null,null,null,0,0,0,0,null,null,null,null,null,null,null,null,null,null,null,null,null,null,null,0,0,0,0,0,0,0,0.05,null,null,0,null,null,0,0,0,null,null,null,null,0,0,0,null,0,null,0,0]
[85,"00:14:00",null,null,null,0,0,null,null,null,0,0,0,0,null,null,null,null,null,null,null,null,null,null,null,null,null,null,null,0,0,0,0,0,0,0,0.05,null,null,0,null,null,0,0,0,null,null,null,null,0,0,0,null,0,null,0,0]
[86,"00:14:10",null,null,null,0,0,null,null,null,0,0,0,0,null,null,null,null,null,null,null,null,null,null,null,null,null,null,null,0,0,0,0,0,0,0,0.05,null,null,0,null,null,0,0,0,null,null,null,null,0,0,0,null,0,null,0,0]
[87,"00:14:20",null,null,null,0,0,null,null,null,0,0,0,0,null,null,null,null,null,null,null,null,null,null,null,null,null,null,null,0,0,0,0,0,0,0,0.05,null,null,0,null,null,0,0,0,null,null,null,null,0,0,0,null,0,null,0,0]
[88,"00:14:30",null,null,null,0,0,null,null,null,0,0,0,0,null,null,null,null,null,null,null,null,null,null,null,null,null,null,null,0,0,0,0,0,0,0,0.05,null,null,0,null,null,0,0,0,null,null,null,null,0,0,0,null,0,null,0,0]
[89,"00:14:40",null,null,null,0,0,null,null,null,0,0,0,0,null,null,null,null,null,null,null,null,null,null,null,null,null,null,null,0,0,0,0,0,0,0,0.05,null,null,0,null,null,0,0,0,null,null,null,null,0,0,0,null,0,null,0,0]
[90,"00:14:50",null,null,null,0,0,null,null,null,0,0,0,0,null,null,null,null,null,null,null,null,null,null,null,null,null,null,null,0,0,0,0,0,0,0,0.05,null,null,0,null,null,0,0,0,null,null,null,null,0,0,0,null,0,null,0,0]
[91,"00:15:00",null,null,null,0,0,null,null,null,0,0,0,0,null,null,null,null,null,null,null,null,null,null,null,null,null,null,null,0,0,0,0,0,0,0,0.05,null,null,0,null,null,0,0,0,null,null,null,null,0,0,0,null,0,null,0,0]
[92,"00:15:10",null,null,null,0,0,null,null,null,0,0,0,0,null,null,null,null,null,null,null,null,null,null,null,null,null,null,null,0,0,0,0,0,0,0,0.05,null,null,0,null,null,0,0,0,null,null,null,null,0,0,0,null,0,null,0,0]
[93,"00:15:20",null,null,null,0,0,null,null,null,0,0,0,0,null,null,null,null,null,null,null,null,null,null,null,null,null,null,null,0,0,0,0,0,0,0,0.05,null,null,0,null,null,0,0,0,null,null,null,null,0,0,0,null,0,null,0,0]
[94,"00:15:30",null,null,null,0,0,null,null,null,0,0,0,0,null,null,null,null,null,null,null,null,null,null,null,null,null,null,null,0,0,0,0,0,0,0,0.05,null,null,0,null,null,0,0,0,null,null,null,null,0,0,0,null,0,null,0,0]
[95,"00:15:40",null,null,null,0,0,null,null,null,0,0,0,0,null,null,null,null,null,null,null,null,null,null,null,null,null,null,null,0,0,0,0,0,0,0,0.05,null,null,0,null,null,0,0,0,null,null,null,null,0,0,0,null,0,null,0,0]
[96,"00:15:50",null,null,null,0,0,null,null,null,0,0,0,0,null,null,null,null,null,null,null,null,null,null,null,null,null,null,null,0,0,0,0,0,0,0,0.05,null,null,0,null,null,0,0,0,null,null,null,null,0,0,0,null,0,null,0,0]
[97,"00:16:00",null,null,null,0,0,null,null,null,0,0,0,0,null,null,null,null,null,null,null,null,null,null,null,null,null,null,null,0,0,0,0,0,0,0,0.05,null,null,0,null,null,0,0,0,null,null,null,null,0,0,0,null,0,null,{"$f":"STDEV( AG135:AG165)","v":0},{"$f":"STDEV( AD135:AD165)","v":0}]
[98,"00:16:10",null,null,null,0,0,null,null,null,0,0,0,0,null,null,null,null,null,null,null,null,null,null,null,null,null,null,null,0,0,0,0,0,0,0,0.05,null,null,0,null,null,0,0,0,null,null,null,null,0,0,0,null,{"$f":"ABS(AD136 - AD135)","v":0},null,0,0]
[99,"00:16:20",null,null,null,{"$f":"E137/6","v":0},0,null,null,null,{"$f":"IF(I137 = 0, 0, H137 * J137 / I137)","v":0},{"$f":"D137 + K137","v":0},{"$f":"C137 - G137","v":0},0,null,null,null,null,null,null,null,null,null,null,null,null,null,null,null,0,0,0,0,0,0,0,0.05,null,null,0,null,null,0,0,0,null,null,null,null,0,{"$f":"H137","v":0},0,null,0,null,0,0]
[100,"00:16:30",null,null,null,0,{"$f":"IF($J$5=TRUE,D138,IF( ABS(D138 -G137) < F138, D138,G137 + SIGN( D138 - G137 ) * F138 ))","v":0},null,null,null,0,0,0,0,null,null,null,null,null,null,null,null,null,null,null,null,null,null,null,0,0,0,0,0,0,0,0.05,null,null,0,null,null,0,0,0,null,null,null,null,0,0,0,null,0,null,0,0]
[101,"00:16:40",null,null,null,0,0,null,null,null,0,0,0,0,null,null,null,null,null,null,null,null,null,null,null,null,null,null,null,0,0,0,0,0,0,0,0.05,null,null,0,null,null,0,0,0,null,null,null,null,0,0,0,null,0,null,0,0]
[102,"00:16:50",null,null,null,0,0,null,null,null,0,0,0,0,null,null,null,null,null,null,null,null,null,null,null,null,null,null,null,0,0,0,0,0,0,0,0.05,null,null,0,null,null,0,0,0,null,null,null,null,0,0,0,null,0,null,0,0]
[103,"00:17:00",null,null,null,0,0,null,null,null,0,0,0,0,null,null,null,null,null,null,null,null,null,null,null,null,null,null,null,0,0,0,0,0,0,0,0.05,null,null,0,null,null,0,0,0,null,null,null,null,0,0,0,null,0,null,0,0]
[104,"00:17:10",null,null,null,0,0,null,null,null,0,0,0,0,null,null,null,null,null,null,null,null,null,null,null,null,null,null,null,0,0,0,0,0,0,0,0.05,null,null,0,null,null,0,0,0,null,null,null,null,0,0,0,null,0,null,0,0]
[105,"00:17:20",null,null,null,0,0,null,null,null,0,0,0,0,null,null,null,null,null,null,null,null,null,null,null,null,null,null,null,0,0,0,0,0,0,0,0.05,null,null,0,null,null,0,0,0,null,null,null,null,0,0,0,null,0,null,0,0]
[106,"00:17:30",null,null,null,0,0,null,null,null,0,0,0,0,null,null,null,null,null,null,null,null,null,null,null,null,null,null,null,0,0,0,0,0,0,0,0.05,null,null,0,null,null,0,0,0,null,null,null,null,0,0,0,null,0,null,0,0]
[107,"00:17:40",null,null,null,0,0,null,null,null,0,0,0,0,null,null,null,null,null,null,null,null,null,null,null,null,null,null,null,0,0,0,0,0,0,0,0.05,null,null,0,null,null,0,0,0,null,null,null,null,0,0,0,null,0,null,0,0]
[108,"00:17:50",null,null,null,0,0,null,null,null,0,0,0,0,null,null,null,null,null,null,null,null,null,null,null,null,null,null,null,0,0,0,0,0,0,0,0.05,null,null,0,null,null,0,0,0,null,null,null,null,0,0,0,null,0,null,0,0]
[109,"00:18:00",null,null,null,0,0,null,null,null,0,0,0,0,null,null,null,null,null,null,null,null,null,null,null,null,null,null,null,0,0,0,0,0,0,0,0.05,null,null,0,null,null,0,0,0,null,null,null,null,0,0,0,null,0,null,0,0]
[110,"00:18:10",null,null,null,0,0,null,null,null,0,0,0,0,null,null,null,null,null,null,null,null,null,null,null,null,null,null,null,0,0,0,0,0,0,0,0.05,null,null,0,null,null,0,0,0,null,null,null,null,0,0,0,null,0,null,0,0]
[111,"00:18:20",null,null,null,0,0,null,null,null,0,0,0,0,null,null,null,null,null,null,null,null,null,null,null,null,null,null,null,0,0,0,0,0,0,0,0.05,null,null,0,null,null,0,0,0,null,null,null,null,0,0,0,null,0,null,0,0]
[112,"00:18:30",null,null,null,0,0,null,null,null,0,0,0,0,null,null,null,null,null,null,null,null,null,null,null,null,null,null,null,0,0,0,0,0,0,0,0.05,null,null,0,null,null,0,0,0,null,null,null,null,0,0,0,null,0,null,0,0]
[113,"00:18:40",null,null,null,0,0,null,null,null,0,0,0,0,null,null,null,null,null,null,null,null,null,null,null,null,null,null,null,0,0,0,0,0,0,0,0.05,null,null,0,null,null,0,0,0,null,null,null,null,0,0,0,null,0,null,0,0]
[114,"00:18:50",null,null,null,0,0,null,null,null,0,0,0,0,null,null,null,null,null,null,null,null,null,null,null,null,null,null,null,0,0,0,0,0,0,0,0.05,null,null,0,null,null,0,0,0,null,null,null,null,0,0,0,null,0,null,0,0]
[115,"00:19:00",null,null,null,0,0,null,null,null,0,0,0,0,null,null,null,null,null,null,null,null,null,null,null,null,null,null,null,0,0,0,0,0,0,0,0.05,null,null,0,null,null,0,0,0,null,null,null,null,0,0,0,null,0,null,0,0]
[116,"00:19:10",null,null,null,0,0,null,null,null,0,0,0,0,null,null,null,null,null,null,null,null,null,null,null,null,null,null,null,0,0,0,0,0,0,0,0.05,null,null,0,null,null,0,0,0,null,null,null,null,0,0,0,null,0,null,0,0]
[117,"00:19:20",null,null,null,0,0,null,null,null,0,0,0,0,null,null,null,null,null,null,null,null,null,null,null,null,null,null,null,0,0,0,0,0,0,0,0.05,null,null,0,null,null,0,0,0,null,null,null,null,0,0,0,null,0,null,0,0]
[118,"00:19:30",null,null,null,0,0,null,null,null,0,0,0,0,null,null,null,null,null,null,null,null,null,null,null,null,null,null,null,0,0,0,0,0,0,0,0.05,null,null,0,null,null,0,0,0,null,null,null,null,0,0,0,null,0,null,0,0]
[119,"00:19:40",null,null,null,0,0,null,null,null,0,0,0,0,null,null,null,null,null,null,null,null,null,null,null,null,null,null,null,0,0,0,0,0,0,0,0.05,null,null,0,null,null,0,0,0,null,null,null,null,0,0,0,null,0,null,0,0]
[120,"00:19:50",null,null,null,0,0,null,null,null,0,0,0,0,null,null,null,null,null,null,null,null,null,null,null,null,null,null,null,0,0,0,0,0,0,0,0.05,null,null,0,null,null,0,0,0,null,null,null,null,0,0,0,null,0,null,0,0]
[121,"00:20:00",null,null,null,0,0,null,null,null,0,0,0,0,null,null,null,null,null,null,null,null,null,null,null,null,null,null,null,0,0,0,0,0,0,0,0.05,null,null,0,null,null,0,0,0,null,null,null,null,0,0,0,null,0,null,0,0]
[122,"00:20:10",null,null,null,0,0,null,null,null,0,0,0,0,null,null,null,null,null,null,null,null,null,null,null,null,null,null,null,0,0,0,0,0,0,0,0.05,null,null,0,null,null,0,0,0,null,null,null,null,0,0,0,null,0,null,0,0]
[123,"00:20:20",null,null,null,0,0,null,null,null,0,0,0,0,null,null,null,null,null,null,null,null,null,null,null,null,null,null,null,0,0,0,0,0,0,0,0.05,null,null,0,null,null,0,0,0,null,null,null,null,0,0,0,null,0,null,0,0]
[124,"00:20:30",null,null,null,0,0,null,null,null,0,0,0,0,null,null,null,null,null,null,null,null,null,null,null,null,null,null,null,0,0,0,0,0,0,0,0.05,null,null,0,null,null,0,0,0,null,null,null,null,0,0,0,null,0,null,0,0]
[125,"00:20:40",null,null,null,0,0,null,null,null,0,0,0,0,null,null,null,null,null,null,null,null,null,null,null,null,null,null,null,0,0,0,0,0,0,0,0.05,null,null,0,null,null,0,0,0,null,null,null,null,0,0,0,null,0,null,0,0]
[126,"00:20:50",null,null,null,0,0,null,null,null,0,0,0,0,null,null,null,null,null,null,null,null,null,null,null,null,null,null,null,0,0,0,0,0,0,0,0.05,null,null,0,null,null,0,0,0,null,null,null,null,0,0,0,null,0,null,0,0]
[127,"00:21:00",null,null,null,0,0,null,null,null,0,0,0,0,null,null,null,null,null,null,null,null,null,null,null,null,null,null,null,0,0,0,0,0,0,0,0.05,null,null,0,null,null,0,0,0,null,null,null,null,0,0,0,null,0,null,0,0]
[128,"00:21:10",null,null,null,0,0,null,null,null,0,0,0,0,null,null,null,null,null,null,null,null,null,null,null,null,null,null,null,0,0,0,0,0,0,0,0.05,null,null,0,null,null,0,0,0,null,null,null,null,0,0,0,null,0,null,0,0]
[129,"00:21:20",null,null,null,0,0,null,null,null,0,0,0,{"$f":"BB137","v":0},null,null,null,null,null,null,null,null,null,null,null,null,null,null,null,{"$f":"MIN(MAX(IF(I167 = 0, 0, J167 / I167 ), -1), 1)","v":0},{"$f":"SLOPE( K167:K197, $A167:$A197 )","v":0},0,0,0,0,0,0.05,null,null,{"$f":"ABS(K167)","v":0},null,null,{"$f":"IF(I167=0,0,MIN(MAX(1 - ABS(M168 - K167) / H167, 0), 1))","v":0},{"$f":"IF(I167=0,0,IF(MAX(M167:M227) = MIN(M167:M227), 0, IF(MIN(H167:H197)=0,\"NaN\",MIN(MAX(1 - ABS(M168 - K167) / $AO$39, 0), 1 ))))","v":0},{"$f":"IF(I167=0,0,IF(MAX(M167:M227) = MIN(M167:M227), 0, IF(MIN(H167:H197)=0,\"NaN\",MIN(MAX(1 - ABS(M168 - K167) / AVERAGE($AO$39,H167), 0), 1 ))))","v":0},null,null,null,null,0,0,0,null,0,null,{"$f":"STDEV( AG167:AG197)","v":0},{"$f":"STDEV( AD167:AD197)","v":0}]
[130,"00:21:30",null,null,null,0,0,null,null,null,0,0,0,0,null,null,null,null,null,null,null,null,null,null,null,null,null,null,null,0,0,{"$f":"SLOPE( AD168:AD198, $A168:$A198 )","v":0},{"$f":"IF( $AF$5 = 1, AE168, AF168)","v":0},{"$f":"$D$5","v":0},{"$f":"-AH168","v":0},{"$f":"STDEV( AD168:AD198)","v":0},{"$f":"$D$6","v":0.05},null,null,0,null,null,0,0,0,null,null,null,null,{"$f":"IF($AT$5 = 1, AQ168, AR168)","v":0},0,{"$f":"-AY168","v":0},null,{"$f":"ABS(AD168 - AD167)","v":0},null,0,0]
[131,{"$f":"B168 + TIME(0,0,10)","v":"00:21:40"},null,null,null,0,0,null,null,null,0,0,0,0,null,null,null,null,null,null,null,null,null,null,null,null,null,null,null,0,0,0,0,0,0,0,0.05,null,null,0,null,null,0,0,0,null,null,null,null,0,0,0,null,0,null,0,0]
[132,"00:21:50",null,null,null,0,0,null,null,null,0,0,0,0,null,null,null,null,null,null,null,null,null,null,null,null,null,null,null,0,0,0,0,0,0,0,0.05,null,null,0,null,null,0,0,0,null,null,null,null,0,0,0,null,0,null,0,0]
[133,"00:22:00",null,null,null,0,0,null,null,null,0,0,0,0,null,null,null,null,null,null,null,null,null,null,null,null,null,null,null,0,0,0,0,0,0,0,0.05,null,null,0,null,null,0,0,0,null,null,null,null,0,0,0,null,0,null,0,0]
[134,"00:22:10",null,null,null,0,0,null,null,null,0,0,0,0,null,null,null,null,null,null,null,null,null,null,null,null,null,null,null,0,0,0,0,0,0,0,0.05,null,null,0,null,null,0,0,0,null,null,null,null,0,0,0,null,0,null,0,0]
[135,"00:22:20",null,null,null,0,0,null,null,null,0,0,0,0,null,null,null,null,null,null,null,null,null,null,null,null,null,null,null,0,0,0,0,0,0,0,0.05,null,null,0,null,null,0,0,0,null,null,null,null,0,0,0,null,0,null,0,0]
[136,"00:22:30",null,null,null,0,0,null,null,null,0,0,0,0,null,null,null,null,null,null,null,null,null,null,null,null,null,null,null,0,0,0,0,0,0,0,0.05,null,null,0,null,null,0,0,0,null,null,null,null,0,0,0,null,0,null,0,0]
[137,"00:22:40",null,null,null,0,0,null,null,null,0,0,0,0,null,null,null,null,null,null,null,null,null,null,null,null,null,null,null,0,0,0,0,0,0,0,0.05,null,null,0,null,null,0,0,0,null,null,null,null,0,0,0,null,0,null,0,0]
[138,"00:22:50",null,null,null,0,0,null,null,null,0,0,0,0,null,null,null,null,null,null,null,null,null,null,null,null,null,null,null,0,0,0,0,0,0,0,0.05,null,null,0,null,null,0,0,0,null,null,null,null,0,0,0,null,0,null,0,0]
[139,"00:23:00",null,null,null,0,0,null,null,null,0,0,0,0,null,null,null,null,null,null,null,null,null,null,null,null,null,null,null,0,0,0,0,0,0,0,0.05,null,null,0,null,null,0,0,0,null,null,null,null,0,0,0,null,0,null,0,0]
[140,"00:23:10",null,null,null,0,0,null,null,null,0,0,0,0,null,null,null,null,null,null,null,null,null,null,null,null,null,null,null,0,0,0,0,0,0,0,0.05,null,null,0,null,null,0,0,0,null,null,null,null,0,0,0,null,0,null,0,0]
[141,"00:23:20",null,null,null,0,0,null,null,null,0,0,0,0,null,null,null,null,null,null,null,null,null,null,null,null,null,null,null,0,0,0,0,0,0,0,0.05,null,null,0,null,null,0,0,0,null,null,null,null,0,0,0,null,0,null,0,0]
[142,"00:23:30",null,null,null,0,0,null,null,null,0,0,0,0,null,null,null,null,null,null,null,null,null,null,null,null,null,null,null,0,0,0,0,0,0,0,0.05,null,null,0,null,null,0,0,0,null,null,null,null,0,0,0,null,0,null,0,0]
[143,"00:23:40",null,null,null,0,0,null,null,null,0,0,0,0,null,null,null,null,null,null,null,null,null,null,null,null,null,null,null,0,0,0,0,0,0,0,0.05,null,null,0,null,null,0,0,0,null,null,null,null,0,0,0,null,0,null,0,0]
[144,"00:23:50",null,null,null,0,0,null,null,null,0,0,0,0,null,null,null,null,null,null,null,null,null,null,null,null,null,null,null,0,0,0,0,0,0,0,0.05,null,null,0,null,null,0,0,0,null,null,null,null,0,0,0,null,0,null,0,0]
[145,"00:24:00",null,null,null,0,0,null,null,null,0,0,0,0,null,null,null,null,null,null,null,null,null,null,null,null,null,null,null,0,0,0,0,0,0,0,0.05,null,null,0,null,null,0,0,0,null,null,null,null,0,0,0,null,0,null,0,0]
[146,"00:24:10",null,null,null,0,0,null,null,null,0,0,0,0,null,null,null,null,null,null,null,null,null,null,null,null,null,null,null,0,0,0,0,0,0,0,0.05,null,null,0,null,null,0,0,0,null,null,null,null,0,0,0,null,0,null,0,0]
[147,"00:24:20",null,null,null,0,0,null,null,null,0,0,0,0,null,null,null,null,null,null,null,null,null,null,null,null,null,null,null,0,0,0,0,0,0,0,0.05,null,null,0,null,null,0,0,0,null,null,null,null,0,0,0,null,0,null,0,0]
[148,"00:24:30",null,null,null,0,0,null,null,null,0,0,0,0,null,null,null,null,null,null,null,null,null,null,null,null,null,null,null,0,0,0,0,0,0,0,0.05,null,null,0,null,null,0,0,0,null,null,null,null,0,0,0,null,0,null,0,0]
[149,"00:24:40",null,null,null,0,0,null,null,null,0,0,0,0,null,null,null,null,null,null,null,null,null,null,null,null,null,null,null,0,0,0,0,0,0,0,0.05,null,null,0,null,null,0,0,0,null,null,null,null,0,0,0,null,0,null,0,0]
[150,"00:24:50",null,null,null,0,0,null,null,null,0,0,0,0,null,null,null,null,null,null,null,null,null,null,null,null,null,null,null,0,0,0,0,0,0,0,0.05,null,null,0,null,null,0,0,0,null,null,null,null,0,0,0,null,0,null,0,0]
[151,"00:25:00",null,null,null,0,0,null,null,null,0,0,0,0,null,null,null,null,null,null,null,null,null,null,null,null,null,null,null,0,0,0,0,0,0,0,0.05,null,null,0,null,null,0,0,0,null,null,null,null,0,0,0,null,0,null,0,0]
[152,"00:25:10",null,null,null,0,0,null,null,null,0,0,0,0,null,null,null,null,null,null,null,null,null,null,null,null,null,null,null,0,0,0,0,0,0,0,0.05,null,null,0,null,null,0,0,0,null,null,null,null,0,0,0,null,0,null,0,0]
[153,"00:25:20",null,null,null,0,0,null,null,null,0,0,0,0,null,null,null,null,null,null,null,null,null,null,null,null,null,null,null,0,0,0,0,0,0,0,0.05,null,null,0,null,null,0,0,0,null,null,null,null,0,0,0,null,0,null,0,0]
[154,"00:25:30",null,null,null,0,0,null,null,null,0,0,0,0,null,null,null,null,null,null,null,null,null,null,null,null,null,null,null,0,0,0,0,0,0,0,0.05,null,null,0,null,null,0,0,0,null,null,null,null,0,0,0,null,0,null,0,0]
[155,"00:25:40",null,null,null,0,0,null,null,null,0,0,0,0,null,null,null,null,null,null,null,null,null,null,null,null,null,null,null,0,0,0,0,0,0,0,0.05,null,null,0,null,null,0,0,0,null,null,null,null,0,0,0,null,0,null,0,0]
[156,"00:25:50",null,null,null,0,0,null,null,null,0,0,0,0,null,null,null,null,null,null,null,null,null,null,null,null,null,null,null,0,0,0,0,0,0,0,0.05,null,null,0,null,null,0,0,0,null,null,null,null,0,0,0,null,0,null,0,0]
[157,"00:26:00",null,null,null,0,0,null,null,null,0,0,0,0,null,null,null,null,null,null,null,null,null,null,null,null,null,null,null,0,0,0,0,0,0,0,0.05,null,null,0,null,null,0,0,0,null,null,null,null,0,0,0,null,0,null,0,0]
[158,"00:26:10",null,null,null,0,0,null,null,null,0,0,0,0,null,null,null,null,null,null,null,null,null,null,null,null,null,null,null,0,0,0,0,0,0,0,0.05,null,null,0,null,null,0,0,0,null,null,null,null,0,0,0,null,0,null,0,0]
[159,"00:26:20",null,null,null,0,0,null,null,null,0,0,0,0,null,null,null,null,null,null,null,null,null,null,null,null,null,null,null,0,0,0,0,0,0,0,0.05,null,null,0,null,null,0,0,0,null,null,null,null,0,0,0,null,0,null,0,0]
[160,"00:26:30",null,null,null,0,0,null,null,null,0,0,0,0,null,null,null,null,null,null,null,null,null,null,null,null,null,null,null,0,0,0,0,0,0,0,0.05,null,null,0,null,null,0,0,0,null,null,null,null,0,0,0,null,0,null,0,0]
[161,"00:26:40",null,null,null,0,0,null,null,null,0,0,0,0,null,null,null,null,null,null,null,null,null,null,null,null,null,null,null,0,0,0,0,0,0,0,0.05,null,null,0,null,null,0,0,0,null,null,null,null,0,0,0,null,0,null,{"$f":"STDEV( AG199:AG229)","v":0},{"$f":"STDEV( AD199:AD229)","v":0}]
[162,"00:26:50",null,null,null,0,0,null,null,null,0,0,0,0,null,null,null,null,null,null,null,null,null,null,null,null,null,null,null,0,0,0,0,0,0,0,0.05,null,null,0,null,null,0,0,0,null,null,null,null,0,0,0,null,{"$f":"ABS(AD200 - AD199)","v":0},null,0,0]
[163,"00:27:00",null,null,null,{"$f":"E201/6","v":0},0,null,null,null,{"$f":"IF(I201 = 0, 0, H201 * J201 / I201)","v":0},{"$f":"D201 + K201","v":0},{"$f":"C201 - G201","v":0},0,null,null,null,null,null,null,null,null,null,null,null,null,null,null,null,0,0,0,0,0,0,0,0.05,null,null,0,null,null,0,0,0,null,null,null,null,0,{"$f":"H201","v":0},0,null,0,null,0,0]
[164,"00:27:10",null,null,null,0,{"$f":"IF($J$5=TRUE,D202,IF( ABS(D202 -G201) < F202, D202,G201 + SIGN( D202 - G201 ) * F202 ))","v":0},null,null,null,0,0,0,0,null,null,null,null,null,null,null,null,null,null,null,null,null,null,null,0,0,0,0,0,0,0,0.05,null,null,0,null,null,0,0,0,null,null,null,null,0,0,0,null,0,null,0,0]
[165,"00:27:20",null,null,null,0,0,null,null,null,0,0,0,0,null,null,null,null,null,null,null,null,null,null,null,null,null,null,null,0,0,0,0,0,0,0,0.05,null,null,0,null,null,0,0,0,null,null,null,null,0,0,0,null,0,null,0,0]
[166,"00:27:30",null,null,null,0,0,null,null,null,0,0,0,0,null,null,null,null,null,null,null,null,null,null,null,null,null,null,null,0,0,0,0,0,0,0,0.05,null,null,0,null,null,0,0,0,null,null,null,null,0,0,0,null,0,null,0,0]
[167,"00:27:40",null,null,null,0,0,null,null,null,0,0,0,0,null,null,null,null,null,null,null,null,null,null,null,null,null,null,null,0,0,0,0,0,0,0,0.05,null,null,0,null,null,0,0,0,null,null,null,null,0,0,0,null,0,null,0,0]
[168,"00:27:50",null,null,null,0,0,null,null,null,0,0,0,0,null,null,null,null,null,null,null,null,null,null,null,null,null,null,null,0,0,0,0,0,0,0,0.05,null,null,0,null,null,0,0,0,null,null,null,null,0,0,0,null,0,null,0,0]
[169,"00:28:00",null,null,null,0,0,null,null,null,0,0,0,0,null,null,null,null,null,null,null,null,null,null,null,null,null,null,null,0,0,0,0,0,0,0,0.05,null,null,0,null,null,0,0,0,null,null,null,null,0,0,0,null,0,null,0,0]
[170,"00:28:10",null,null,null,0,0,null,null,null,0,0,0,0,null,null,null,null,null,null,null,null,null,null,null,null,null,null,null,0,0,0,0,0,0,0,0.05,null,null,0,null,null,0,0,0,null,null,null,null,0,0,0,null,0,null,0,0]
[171,"00:28:20",null,null,null,0,0,null,null,null,0,0,0,0,null,null,null,null,null,null,null,null,null,null,null,null,null,null,null,0,0,0,0,0,0,0,0.05,null,null,0,null,null,0,0,0,null,null,null,null,0,0,0,null,0,null,0,0]
[172,"00:28:30",null,null,null,0,0,null,null,null,0,0,0,0,null,null,null,null,null,null,null,null,null,null,null,null,null,null,null,0,0,0,0,0,0,0,0.05,null,null,0,null,null,0,0,0,null,null,null,null,0,0,0,null,0,null,0,0]
[173,"00:28:40",null,null,null,0,0,null,null,null,0,0,0,0,null,null,null,null,null,null,null,null,null,null,null,null,null,null,null,0,0,0,0,0,0,0,0.05,null,null,0,null,null,0,0,0,null,null,null,null,0,0,0,null,0,null,0,0]
[174,"00:28:50",null,null,null,0,0,null,null,null,0,0,0,0,null,null,null,null,null,null,null,null,null,null,null,null,null,null,null,0,0,0,0,0,0,0,0.05,null,null,0,null,null,0,0,0,null,null,null,null,0,0,0,null,0,null,0,0]
[175,"00:29:00",null,null,null,0,0,null,null,null,0,0,0,0,null,null,null,null,null,null,null,null,null,null,null,null,null,null,null,0,0,0,0,0,0,0,0.05,null,null,0,null,null,0,0,0,null,null,null,null,0,0,0,null,0,null,0,0]
[176,"00:29:10",null,null,null,0,0,null,null,null,0,0,0,0,null,null,null,null,null,null,null,null,null,null,null,null,null,null,null,0,0,0,0,0,0,0,0.05,null,null,0,null,null,0,0,0,null,null,null,null,0,0,0,null,0,null,0,0]
[177,"00:29:20",null,null,null,0,0,null,null,null,0,0,0,0,null,null,null,null,null,null,null,null,null,null,null,null,null,null,null,0,0,0,0,0,0,0,0.05,null,null,0,null,null,0,0,0,null,null,null,null,0,0,0,null,0,null,0,0]
[178,"00:29:30",null,null,null,0,0,null,null,null,0,0,0,0,null,null,null,null,null,null,null,null,null,null,null,null,null,null,null,0,0,0,0,0,0,0,0.05,null,null,0,null,null,0,0,0,null,null,null,null,0,0,0,null,0,null,0,0]
[179,"00:29:40",null,null,null,0,0,null,null,null,0,0,0,0,null,null,null,null,null,null,null,null,null,null,null,null,null,null,null,0,0,0,0,0,0,0,0.05,null,null,0,null,null,0,0,0,null,null,null,null,0,0,0,null,0,null,0,0]
[180,"00:29:50",null,null,null,0,0,null,null,null,0,0,0,0,null,null,null,null,null,null,null,null,null,null,null,null,null,null,null,0,0,0,0,0,0,0,0.05,null,null,0,null,null,0,0,0,null,null,null,null,0,0,0,null,0,null,0,0]
[181,"00:30:00",null,null,null,0,0,null,null,null,0,0,0,0,null,null,null,null,null,null,null,null,null,null,null,null,null,null,null,0,0,0,0,0,0,0,0.05,null,null,0,null,null,0,0,0,null,null,null,null,0,0,0,null,0,null,0,0]
[182,"00:30:10",null,null,null,0,0,null,null,null,0,0,0,0,null,null,null,null,null,null,null,null,null,null,null,null,null,null,null,0,0,0,0,0,0,0,0.05,null,null,0,null,null,0,0,0,null,null,null,null,0,0,0,null,0,null,0,0]
[183,"00:30:20",null,null,null,0,0,null,null,null,0,0,0,0,null,null,null,null,null,null,null,null,null,null,null,null,null,null,null,0,0,0,0,0,0,0,0.05,null,null,0,null,null,0,0,0,null,null,null,null,0,0,0,null,0,null,0,0]
[184,"00:30:30",null,null,null,0,0,null,null,null,0,0,0,0,null,null,null,null,null,null,null,null,null,null,null,null,null,null,null,0,0,0,0,0,0,0,0.05,null,null,0,null,null,0,0,0,null,null,null,null,0,0,0,null,0,null,0,0]
[185,"00:30:40",null,null,null,0,0,null,null,null,0,0,0,0,null,null,null,null,null,null,null,null,null,null,null,null,null,null,null,0,0,0,0,0,0,0,0.05,null,null,0,null,null,0,0,0,null,null,null,null,0,0,0,null,0,null,0,0]
[186,"00:30:50",null,null,null,0,0,null,null,null,0,0,0,0,null,null,null,null,null,null,null,null,null,null,null,null,null,null,null,0,0,0,0,0,0,0,0.05,null,null,0,null,null,0,0,0,null,null,null,null,0,0,0,null,0,null,0,0]
[187,"00:31:00",null,null,null,0,0,null,null,null,0,0,0,0,null,null,null,null,null,null,null,null,null,null,null,null,null,null,null,0,0,0,0,0,0,0,0.05,null,null,0,null,null,0,0,0,null,null,null,null,0,0,0,null,0,null,0,0]
[188,"00:31:10",null,null,null,0,0,null,null,null,0,0,0,0,null,null,null,null,null,null,null,null,null,null,null,null,null,null,null,0,0,0,0,0,0,0,0.05,null,null,0,null,null,0,0,0,null,null,null,null,0,0,0,null,0,null,0,0]
[189,"00:31:20",null,null,null,0,0,null,null,null,0,0,0,0,null,null,null,null,null,null,null,null,null,null,null,null,null,null,null,0,0,0,0,0,0,0,0.05,null,null,0,null,null,0,0,0,null,null,null,null,0,0,0,null,0,null,0,0]
[190,"00:31:30",null,null,null,0,0,null,null,null,0,0,0,0,null,null,null,null,null,null,null,null,null,null,null,null,null,null,null,0,0,0,0,0,0,0,0.05,null,null,0,null,null,0,0,0,null,null,null,null,0,0,0,null,0,null,0,0]
[191,"00:31:40",null,null,null,0,0,null,null,null,0,0,0,0,null,null,null,null,null,null,null,null,null,null,null,null,null,null,null,0,0,0,0,0,0,0,0.05,null,null,0,null,null,0,0,0,null,null,null,null,0,0,0,null,0,null,0,0]
[192,"00:31:50",null,null,null,0,0,null,null,null,0,0,0,0,null,null,null,null,null,null,null,null,null,null,null,null,null,null,null,0,0,0,0,0,0,0,0.05,null,null,0,null,null,0,0,0,null,null,null,null,0,0,0,null,0,null,0,0]
[193,"00:32:00",null,null,null,0,0,null,null,null,0,0,0,{"$f":"BB201","v":0},null,null,null,null,null,null,null,null,null,null,null,null,null,null,null,{"$f":"MIN(MAX(IF(I231 = 0, 0, J231 / I231 ), -1), 1)","v":0},{"$f":"SLOPE( K231:K261, $A231:$A261 )","v":0},0,0,0,0,0,0.05,null,null,{"$f":"ABS(K231)","v":0},null,null,{"$f":"IF(I231=0,0,MIN(MAX(1 - ABS(M232 - K231) / H231, 0), 1))","v":0},{"$f":"IF(I231=0,0,IF(MAX(M231:M291) = MIN(M231:M291), 0, IF(MIN(H231:H261)=0,\"NaN\",MIN(MAX(1 - ABS(M232 - K231) / $AO$39, 0), 1 ))))","v":0},{"$f":"IF(I231=0,0,IF(MAX(M231:M291) = MIN(M231:M291), 0, IF(MIN(H231:H261)=0,\"NaN\",MIN(MAX(1 - ABS(M232 - K231) / AVERAGE($AO$39,H231), 0), 1 ))))","v":0},null,null,null,null,0,0,0,null,0,null,{"$f":"STDEV( AG231:AG261)","v":0},{"$f":"STDEV( AD231:AD261)","v":0}]
[194,"00:32:10",null,null,null,0,0,null,null,null,0,0,0,0,null,null,null,null,null,null,null,null,null,null,null,null,null,null,null,0,0,{"$f":"SLOPE( AD232:AD262, $A232:$A262 )","v":0},{"$f":"IF( $AF$5 = 1, AE232, AF232)","v":0},{"$f":"$D$5","v":0},{"$f":"-AH232","v":0},{"$f":"STDEV( AD232:AD262)","v":0},{"$f":"$D$6","v":0.05},null,null,0,null,null,0,0,0,null,null,null,null,{"$f":"IF($AT$5 = 1, AQ232, AR232)","v":0},0,{"$f":"-AY232","v":0},null,0,null,{"$f":"STDEV( AG232:AG262)","v":0},{"$f":"STDEV( AD232:AD262)","v":0}]
[195,{"$f":"B232 + TIME(0,0,10)","v":"00:32:20"},null,null,null,0,0,null,null,null,0,0,0,0,null,null,null,null,null,null,null,null,null,null,null,null,null,null,null,0,0,0,0,0,0,0,0.05,null,null,0,null,null,0,0,0,null,null,null,null,0,0,0,null,{"$f":"ABS(AD233 - AD232)","v":0},null,0,0]
[196,"00:32:30",null,null,null,0,0,null,null,null,0,0,0,0,null,null,null,null,null,null,null,null,null,null,null,null,null,null,null,0,0,0,0,0,0,0,0.05,null,null,0,null,null,0,0,0,null,null,null,null,0,0,0,null,0,null,0,0]
[197,"00:32:40",null,null,null,0,0,null,null,null,0,0,0,0,null,null,null,null,null,null,null,null,null,null,null,null,null,null,null,0,0,0,0,0,0,0,0.05,null,null,0,null,null,0,0,0,null,null,null,null,0,0,0,null,0,null,0,0]
[198,"00:32:50",null,null,null,0,0,null,null,null,0,0,0,0,null,null,null,null,null,null,null,null,null,null,null,null,null,null,null,0,0,0,0,0,0,0,0.05,null,null,0,null,null,0,0,0,null,null,null,null,0,0,0,null,0,null,0,0]
[199,"00:33:00",null,null,null,0,0,null,null,null,0,0,0,0,null,null,null,null,null,null,null,null,null,null,null,null,null,null,null,0,0,0,0,0,0,0,0.05,null,null,0,null,null,0,0,0,null,null,null,null,0,0,0,null,0,null,0,0]
[200,"00:33:10",null,null,null,0,0,null,null,null,0,0,0,0,null,null,null,null,null,null,null,null,null,null,null,null,null,null,null,0,0,0,0,0,0,0,0.05,null,null,0,null,null,0,0,0,null,null,null,null,0,0,0,null,0,null,0,0]
[201,"00:33:20",null,null,null,0,0,null,null,null,0,0,0,0,null,null,null,null,null,null,null,null,null,null,null,null,null,null,null,0,0,0,0,0,0,0,0.05,null,null,0,null,null,0,0,0,null,null,null,null,0,0,0,null,0,null,0,0]
[202,"00:33:30",null,null,null,0,0,null,null,null,0,0,0,0,null,null,null,null,null,null,null,null,null,null,null,null,null,null,null,0,0,0,0,0,0,0,0.05,null,null,0,null,null,0,0,0,null,null,null,null,0,0,0,null,0,null,0,0]
[203,"00:33:40",null,null,null,0,0,null,null,null,0,0,0,0,null,null,null,null,null,null,null,null,null,null,null,null,null,null,null,0,0,0,0,0,0,0,0.05,null,null,0,null,null,0,0,0,null,null,null,null,0,0,0,null,0,null,0,0]
[204,"00:33:50",null,null,null,0,0,null,null,null,0,0,0,0,null,null,null,null,null,null,null,null,null,null,null,null,null,null,null,0,0,0,0,0,0,0,0.05,null,null,0,null,null,0,0,0,null,null,null,null,0,0,0,null,0,null,0,0]
[205,"00:34:00",null,null,null,0,0,null,null,null,0,0,0,0,null,null,null,null,null,null,null,null,null,null,null,null,null,null,null,0,0,0,0,0,0,0,0.05,null,null,0,null,null,0,0,0,null,null,null,null,0,0,0,null,0,null,0,0]
[206,"00:34:10",null,null,null,0,0,null,null,null,0,0,0,0,null,null,null,null,null,null,null,null,null,null,null,null,null,null,null,0,0,0,0,0,0,0,0.05,null,null,0,null,null,0,0,0,null,null,null,null,0,0,0,null,0,null,0,0]
[207,"00:34:20",null,null,null,0,0,null,null,null,0,0,0,0,null,null,null,null,null,null,null,null,null,null,null,null,null,null,null,0,0,0,0,0,0,0,0.05,null,null,0,null,null,0,0,0,null,null,null,null,0,0,0,null,0,null,0,0]
[208,"00:34:30",null,null,null,0,0,null,null,null,0,0,0,0,null,null,null,null,null,null,null,null,null,null,null,null,null,null,null,0,0,0,0,0,0,0,0.05,null,null,0,null,null,0,0,0,null,null,null,null,0,0,0,null,0,null,0,0]
[209,"00:34:40",null,null,null,0,0,null,null,null,0,0,0,0,null,null,null,null,null,null,null,null,null,null,null,null,null,null,null,0,0,0,0,0,0,0,0.05,null,null,0,null,null,0,0,0,null,null,null,null,0,0,0,null,0,null,0,0]
[210,"00:34:50",null,null,null,0,0,null,null,null,0,0,0,0,null,null,null,null,null,null,null,null,null,null,null,null,null,null,null,0,0,0,0,0,0,0,0.05,null,null,0,null,null,0,0,0,null,null,null,null,0,0,0,null,0,null,0,0]
[211,"00:35:00",null,null,null,0,0,null,null,null,0,0,0,0,null,null,null,null,null,null,null,null,null,null,null,null,null,null,null,0,0,0,0,0,0,0,0.05,null,null,0,null,null,0,0,0,null,null,null,null,0,0,0,null,0,null,{"$error":"#DIV/0!"},0]
[212,"00:35:10",null,null,null,0,0,null,null,null,0,0,0,0,null,null,null,null,null,null,null,null,null,null,null,null,null,null,null,0,0,0,0,0,0,0,0.05,null,null,0,null,null,0,0,0,null,null,null,null,0,0,0,null,0,null,{"$error":"#DIV/0!"},0]
[213,"00:35:20",null,null,null,0,0,null,null,null,0,0,0,0,null,null,null,null,null,null,null,null,null,null,null,null,null,null,null,0,0,0,0,0,0,0,0.05,null,null,0,null,null,0,0,0,null,null,null,null,0,0,0,null,0,null,{"$error":"#DIV/0!"},0]
[214,"00:35:30",null,null,null,0,0,null,null,null,0,0,0,0,null,null,null,null,null,null,null,null,null,null,null,null,null,null,null,0,0,0,0,0,0,0,0.05,null,null,0,null,null,0,0,0,null,null,null,null,0,0,0,null,0,null,{"$error":"#DIV/0!"},0]
[215,"00:35:40",null,null,null,0,0,null,null,null,0,0,0,0,null,null,null,null,null,null,null,null,null,null,null,null,null,null,null,0,0,0,0,0,0,0,0.05,null,null,0,null,null,0,0,0,null,null,null,null,0,0,0,null,0,null,{"$error":"#DIV/0!"},0]
[216,"00:35:50",null,null,null,0,0,null,null,null,0,0,0,0,null,null,null,null,null,null,null,null,null,null,null,null,null,null,null,0,0,0,0,0,0,0,0.05,null,null,0,null,null,0,0,0,null,null,null,null,0,0,0,null,0,null,{"$error":"#DIV/0!"},0]
[217,"00:36:00",null,null,null,0,0,null,null,null,0,0,0,0,null,null,null,null,null,null,null,null,null,null,null,null,null,null,null,0,0,0,0,0,0,0,0.05,null,null,0,null,null,0,0,0,null,null,null,null,0,0,0,null,0,null,{"$error":"#DIV/0!"},0]
[218,"00:36:10",null,null,null,0,0,null,null,null,0,0,0,0,null,null,null,null,null,null,null,null,null,null,null,null,null,null,null,0,0,0,0,0,0,0,0.05,null,null,0,null,null,0,0,0,null,null,null,null,0,0,0,null,0,null,{"$error":"#DIV/0!"},0]
[219,"00:36:20",null,null,null,0,0,null,null,null,0,0,0,0,null,null,null,null,null,null,null,null,null,null,null,null,null,null,null,0,0,0,0,0,0,0,0.05,null,null,0,null,null,0,0,0,null,null,null,null,0,0,0,null,0,null,{"$error":"#DIV/0!"},0]
[220,"00:36:30",null,null,null,0,0,null,null,null,0,0,0,0,null,null,null,null,null,null,null,null,null,null,null,null,null,null,null,0,0,0,0,0,0,0,0.05,null,null,0,null,null,0,0,0,null,null,null,null,0,0,0,null,0,null,{"$error":"#DIV/0!"},0]
[221,"00:36:40",null,null,null,0,0,null,null,null,0,0,0,0,null,null,null,null,null,null,null,null,null,null,null,null,null,null,null,0,0,0,0,0,0,0,0.05,null,null,0,null,null,0,0,0,null,null,null,null,0,0,0,null,0,null,{"$error":"#DIV/0!"},0]
[222,"00:36:50",null,null,null,0,0,null,null,null,0,0,0,0,null,null,null,null,null,null,null,null,null,null,null,null,null,null,null,0,0,0,0,0,0,0,0.05,null,null,0,null,null,0,0,0,null,null,null,null,0,0,0,null,0,null,{"$error":"#DIV/0!"},0]
[223,"00:37:00",null,null,null,0,0,null,null,null,0,0,0,0,null,null,null,null,null,null,null,null,null,null,null,null,null,null,null,0,0,0,0,0,0,0,0.05,null,null,0,null,null,0,0,0,null,null,null,null,0,0,0,null,0,null,{"$error":"#DIV/0!"},0]
[224,"00:37:10",null,null,null,0,0,null,null,null,0,0,0,0,null,null,null,null,null,null,null,null,null,null,null,null,null,null,null,0,0,0,0,0,0,0,0.05,null,null,0,null,null,0,0,0,null,null,null,null,0,0,0,null,0,null,{"$error":"#DIV/0!"},0]
[225,"00:37:20",null,null,null,0,0,null,null,null,0,0,0,0,null,null,null,null,null,null,null,null,null,null,null,null,null,null,null,0,0,0,0,0,0,0,0.05,null,null,0,null,null,0,0,0,null,null,null,null,0,0,0,null,0,null,{"$error":"#DIV/0!"},0]
[226,"00:37:30",null,null,null,0,0,null,null,null,0,0,0,0,null,null,null,null,null,null,null,null,null,null,null,null,null,null,null,0,0,0,0,0,0,0,0.05,null,null,0,null,null,0,0,0,null,null,null,null,0,0,0,null,0,null,{"$error":"#DIV/0!"},0]
[227,"00:37:40",null,null,null,{"$f":"E265/6","v":0},0,null,null,null,{"$f":"IF(I265 = 0, 0, H265 * J265 / I265)","v":0},{"$f":"D265 + K265","v":0},{"$f":"C265 - G265","v":0},0,null,null,null,null,null,null,null,null,null,null,null,null,null,null,null,0,0,0,0,0,0,0,0.05,null,null,0,null,null,0,0,0,null,null,null,null,0,{"$f":"H265","v":0},0,null,0,null,{"$error":"#DIV/0!"},0]
[228,"00:37:50",null,null,null,0,{"$f":"IF($J$5=TRUE,D266,IF( ABS(D266 -G265) < F266, D266,G265 + SIGN( D266 - G265 ) * F266 ))","v":0},null,null,null,0,0,0,0,null,null,null,null,null,null,null,null,null,null,null,null,null,null,null,0,0,0,0,0,0,0,0.05,null,null,0,null,null,0,0,0,null,null,null,null,0,0,0,null,0,null,{"$error":"#DIV/0!"},0]
[229,"00:38:00",null,null,null,0,0,null,null,null,{"$f":"IF(I267 = 0, 0, H267 * J267 / I267)","v":0},0,0,0,null,null,null,null,null,null,null,null,null,null,null,null,null,null,null,0,0,0,0,0,0,0,0.05,null,null,0,null,null,0,0,0,null,null,null,null,0,0,0,null,0,null,{"$error":"#DIV/0!"},0]
[230,"00:38:10",null,null,null,0,0,null,null,null,0,0,0,0,null,null,null,null,null,null,null,null,null,null,null,null,null,null,null,0,0,0,0,0,0,0,0.05,null,null,0,null,null,0,0,0,null,null,null,null,0,0,0,null,0,null,{"$error":"#DIV/0!"},0]
[231,"00:38:20",null,null,null,0,0,null,null,null,0,0,0,0,null,null,null,null,null,null,null,null,null,null,null,null,null,null,null,0,0,0,0,0,0,0,0.05,null,null,0,null,null,0,0,0,null,null,null,null,0,0,0,null,0,null,{"$error":"#DIV/0!"},0]
[232,"00:38:30",null,null,null,0,0,null,null,null,0,0,0,0,null,null,null,null,null,null,null,null,null,null,null,null,null,null,null,0,0,0,0,0,0,0,0.05,null,null,0,null,null,0,0,0,null,null,null,null,0,0,0,null,0,null,{"$error":"#DIV/0!"},0]
[233,"00:38:40",null,null,null,0,0,null,null,null,0,0,0,0,null,null,null,null,null,null,null,null,null,null,null,null,null,null,null,0,0,0,0,0,0,0,0.05,null,null,0,null,null,0,0,0,null,null,null,null,0,0,0,null,0,null,{"$error":"#DIV/0!"},0]
[234,"00:38:50",null,null,null,0,0,null,null,null,0,0,0,0,null,null,null,null,null,null,null,null,null,null,null,null,null,null,null,0,0,0,0,0,0,0,0.05,null,null,0,null,null,0,0,0,null,null,null,null,0,0,0,null,0,null,{"$error":"#DIV/0!"},0]
[235,"00:39:00",null,null,null,0,0,null,null,null,0,0,0,0,null,null,null,null,null,null,null,null,null,null,null,null,null,null,null,0,0,0,0,0,0,0,0.05,null,null,0,null,null,0,0,0,null,null,null,null,0,0,0,null,0,null,{"$error":"#DIV/0!"},0]
[236,"00:39:10",null,null,null,0,0,null,null,null,0,0,0,0,null,null,null,null,null,null,null,null,null,null,null,null,null,null,null,0,0,0,0,0,0,0,0.05,null,null,0,null,null,0,0,0,null,null,null,null,0,0,0,null,0,null,{"$error":"#DIV/0!"},0]
[237,"00:39:20",null,null,null,0,0,null,null,null,0,0,0,0,null,null,null,null,null,null,null,null,null,null,null,null,null,null,null,0,0,0,0,0,0,0,0.05,null,null,0,null,null,0,0,0,null,null,null,null,0,0,0,null,0,null,{"$error":"#DIV/0!"},0]
[238,"00:39:30",null,null,null,0,0,null,null,null,0,0,0,0,null,null,null,null,null,null,null,null,null,null,null,null,null,null,null,0,0,0,0,0,0,0,0.05,null,null,0,null,null,0,0,0,null,null,null,null,0,0,0,null,0,null,{"$error":"#DIV/0!"},0]
[239,"00:39:40",null,null,null,0,0,null,null,null,0,0,0,0,null,null,null,null,null,null,null,null,null,null,null,null,null,null,null,0,0,0,0,0,0,0,0.05,null,null,0,null,null,0,0,0,null,null,null,null,0,0,0,null,0,null,{"$error":"#DIV/0!"},0]
[240,"00:39:50",null,null,null,0,0,null,null,null,0,0,0,0,null,null,null,null,null,null,null,null,null,null,null,null,null,null,null,0,0,0,0,0,0,0,0.05,null,null,0,null,null,0,0,0,null,null,null,null,0,0,0,null,0,null,{"$error":"#DIV/0!"},0]
[241,"00:40:00",null,null,null,0,0,null,null,null,0,0,0,null,null,null,null,null,null,null,null,null,null,null,null,null,null,null,null,0,0,{"$error":"#DIV/0!"},{"$error":"#DIV/0!"},0,0,{"$error":"#DIV/0!"},0.05]
[242,"00:40:10",null,null,null,0,0,null,null,null,0,0,0]
[243,"00:40:20",null,null,null,0,0,null,null,null,0,0,0]
[244,"00:40:30",null,null,null,0,0,null,null,null,0,0,0]
[245,"00:40:40",null,null,null,0,0,null,null,null,0,0,0]
[246,"00:40:50",null,null,null,0,0,null,null,null,0,0,0]
[247,"00:41:00",null,null,null,0,0,null,null,null,0,0,0]
[248,"00:41:10",null,null,null,0,0,null,null,null,0,0,0]
[249,"00:41:20",null,null,null,0,0,null,null,null,0,0,0]
[250,"00:41:30",null,null,null,0,0,null,null,null,0,0,0]
[251,"00:41:40",null,null,null,0,0,null,null,null,0,0,0]
[252,"00:41:50",null,null,null,0,0,null,null,null,0,0,0]
[253,"00:42:00",null,null,null,0,0,null,null,null,0,0,0]
[254,"00:42:10",null,null,null,0,0,null,null,null,0,0,0]
[255,"00:42:20",null,null,null,0,0,null,null,null,0,0,0]
[256,"00:42:30",null,null,null,0,0,null,null,null,0,0,0]
[257,"00:42:40",null,null,null,0,0,null,null,null,0,0,0]
[258,"00:42:50",null,null,null,0,0,null,null,null,0,0,0]
[259,{"$f":"B296 + TIME(0,0,10)","v":"00:43:00"},null,null,null,0,0,null,null,null,0,0,0]
[260,"00:43:10",null,null,null,0,0,null,null,null,0,0,0]
[261,"00:43:20",null,null,null,0,0,null,null,null,0,0,0]
[262,"00:43:30",null,null,null,0,0,null,null,null,0,0,0]
[263,"00:43:40",null,null,null,0,0,null,null,null,0,0,0]
[264,"00:43:50",null,null,null,0,0,null,null,null,0,0,0]
[265,"00:44:00",null,null,null,0,0,null,null,null,0,0,0]
[266,"00:44:10",null,null,null,0,0,null,null,null,0,0,0]
[267,"00:44:20",null,null,null,0,0,null,null,null,0,0,0]
[268,"00:44:30",null,null,null,0,0,null,null,null,0,0,0]
[269,"00:44:40",null,null,null,0,0,null,null,null,0,0,0]
[270,"00:44:50",null,null,null,0,0,null,null,null,0,0,0]
[271,"00:45:00",null,null,null,0,0,null,null,null,0,0,0]
[272,"00:45:10",null,null,null,0,0,null,null,null,0,0,0]
[273,"00:45:20",null,null,null,0,0,null,null,null,0,0,0]
[274,"00:45:30",null,null,null,0,0,null,null,null,0,0,0]
[275,"00:45:40",null,null,null,0,0,null,null,null,0,0,0]
[276,"00:45:50",null,null,null,0,0,null,null,null,0,0,0]
[277,"00:46:00",null,null,null,0,0,null,null,null,0,0,0]
[278,"00:46:10",null,null,null,0,0,null,null,null,0,0,0]
[279,"00:46:20",null,null,null,0,0,null,null,null,0,0,0]
[280,"00:46:30",null,null,null,0,0,null,null,null,0,0,0]
[281,"00:46:40",null,null,null,0,0,null,null,null,0,0,0]
[282,"00:46:50",null,null,null,0,0,null,null,null,0,0,0]
[283,"00:47:00",null,null,null,0,0,null,null,null,0,0,0]
[284,"00:47:10",null,null,null,0,0,null,null,null,0,0,0]
[285,"00:47:20",null,null,null,0,0,null,null,null,0,0,0]
[286,"00:47:30",null,null,null,0,0,null,null,null,0,0,0]
[287,"00:47:40",null,null,null,0,0,null,null,null,0,0,0]
[288,"00:47:50",null,null,null,0,0,null,null,null,0,0,0]
[289,"00:48:00",null,null,null,0,0,null,null,null,0,0,0]
[290,"00:48:10",null,null,null,0,0,null,null,null,0,0,0]
[291,"00:48:20",null,null,null,{"$f":"E329/6","v":0},0,null,null,null,0,{"$f":"D329 + K329","v":0},{"$f":"C329 - G329","v":0}]
[292,"00:48:30",null,null,null,0,{"$f":"IF($J$5=TRUE,D330,IF( ABS(D330 -G329) < F330, D330,G329 + SIGN( D330 - G329 ) * F330 ))","v":0},null,null,null,0,0,0]
[293,"00:48:40",null,null,null,0,0,null,null,null,{"$f":"IF(I331 = 0, 0, H331 * J331 / I331)","v":0},0,0]
[294,"00:48:50",null,null,null,0,0,null,null,null,0,0,0]
[295,"00:49:00",null,null,null,0,0,null,null,null,0,0,0]
[296,"00:49:10",null,null,null,0,0,null,null,null,0,0,0]
[297,"00:49:20",null,null,null,0,0,null,null,null,0,0,0]
[298,"00:49:30",null,null,null,0,0,null,null,null,0,0,0]
[299,"00:49:40",null,null,null,0,0,null,null,null,0,0,0]
[300,"00:49:50",null,null,null,0,0,null,null,null,0,0,0]
[301,"00:50:00",null,null,null,0,0,null,null,null,0,0,0]